Transaction Reference,Supplier Name,Line Value,Department,Category,Transaction Date,Year/Period,SME,Costs split between Babergh and Mid Suffolk District Councils Y/N,% of transaction apportioned to Mid Suffolk District Council
10040950,ADVANCED CONTROLS & MANAGEMENT SYSTEMS L,"4,816.44",Central Heating,Improvements,30-May-21,2122/04,SME,N,
10041105,ADVANCED CONTROLS & MANAGEMENT SYSTEMS L,300,Temporary Accommodation,Repairs,21-Jun-21,2122/04,SME,N,
10041532,ADVANCED CONTROLS & MANAGEMENT SYSTEMS L,786.6,Tenancy Services,Repairs,12-Jul-21,2122/04,SME,N,
10041553,ADVANCED CONTROLS & MANAGEMENT SYSTEMS L,"7,720.00",Hadleigh Pool,Repairs,13-Jul-21,2122/04,SME,N,
10041108,AE WHITE SURFACING,"7,756.00",Hadl C Parks,Repairs,18-Jun-21,2122/04,SME,N,
10041270,AE WHITE SURFACING,"2,646.00",Insurance Claims,Misc Premises Costs,28-Jun-21,2122/04,SME,N,
10041351,AE WHITE SURFACING,605,"Schoolfield, Glemsford",Prof & Consultancy Fees,30-Jun-21,2122/04,SME,N,
10041418,ALPHETON GARAGE LTD,350,Taxi & Private Hire Licensing,Contracted Services,05-Jul-21,2122/04,SME,N,
10041443,ANGLIA RUSKIN UNIVERSITY,"4,500.00",Organisational Devt,Training,17-Sep-20,2122/04,LGE,Y,50%
10041463,ANGLIAN WATER,562.16,Water Sampling,Sampling & Analysis,07-Jul-21,2122/04,LGE,N,
10041464,ANGLIAN WATER,565.26,Water Sampling,Sampling & Analysis,07-Jul-21,2122/04,LGE,N,
10041465,ANGLIAN WATER,630.02,Water Sampling,Sampling & Analysis,07-Jul-21,2122/04,LGE,N,
10041466,ANGLIAN WATER,630.02,Water Sampling,Sampling & Analysis,07-Jul-21,2122/04,LGE,N,
10041537,ANGLIAN WATER,"2,636.66",Sheltered Accommodation,Water Rates - Metered,30-Jun-21,2122/04,LGE,N,
10041446,ARAN SERVICES LTD,"17,201.96",Insulation Imps,Major Contracts,15-Jul-21,2122/04,SME,N,
10041461,ARAN SERVICES LTD,450,Dampness & Condensation,Repairs,08-Jul-21,2122/04,SME,N,
10041210,BINDER LTD,119.76,Sewage Treatment Works,Contracted Services,22-Jun-21,2122/04,SME,N,
10041210,BINDER LTD,180,Sewage Treatment Works,Contracted Services,22-Jun-21,2122/04,SME,N,
10041215,BINDER LTD,299.76,Sewage Treatment Works,Contracted Services,22-Jun-21,2122/04,SME,N,
10041216,BINDER LTD,471.2,Sewage Treatment Works,Contracted Services,22-Jun-21,2122/04,SME,N,
10041217,BINDER LTD,299.76,Sewage Treatment Works,Contracted Services,22-Jun-21,2122/04,SME,N,
10041218,BINDER LTD,569.76,Sewage Treatment Works,Contracted Services,22-Jun-21,2122/04,SME,N,
10041490,BINDER LTD,549.08,Sewage Treatment Works,Contracted Services,09-Jul-21,2122/04,SME,N,
10041858,BINDER LTD,254.76,Sewage Treatment Works,Contracted Services,28-Jul-21,2122/04,SME,N,
20027375,BLUE FLAME (COLCHESTER) LTD,"18,709.22",Current Liabilities,Cert IBS Creditors Holding ac,07-Jul-21,2122/04,SME,N,
20027380,BLUE FLAME (COLCHESTER) LTD,"18,893.33",Current Liabilities,Cert IBS Creditors Holding ac,14-Jul-21,2122/04,SME,N,
20027396,BLUE FLAME (COLCHESTER) LTD,"11,008.79",Current Liabilities,Cert IBS Creditors Holding ac,21-Jul-21,2122/04,SME,N,
20027400,BLUE FLAME (COLCHESTER) LTD,"15,054.38",Current Liabilities,Cert IBS Creditors Holding ac,29-Jul-21,2122/04,SME,N,
10041149,BOWER FULLER,798.23,Wenham Depot,Fire Prevention,08-Jun-21,2122/04,SME,Y,50%
10041155,BOWER FULLER,389.65,Sheltered Accommodation,Fire Prevention,15-Jun-21,2122/04,SME,N,
10041157,BOWER FULLER,"1,225.20",Tenancy Services,Fire Prevention,18-Jun-21,2122/04,SME,N,
10041158,BOWER FULLER,"1,593.72",Rewiring,Improvements,21-Jun-21,2122/04,SME,N,
10041519,AQUASAMPLERS,"1,025.00",Water Sampling,Sampling & Analysis,30-Jun-21,2122/04,SME,N,
10041653,CHEQUERS HOTEL LTD,520,Homelessness Private Sector,B&B Costs,28-Jun-21,2122/04,SME,N,
10041654,CHEQUERS HOTEL LTD,260,Homelessness Private Sector,B&B Costs,28-Jun-21,2122/04,SME,N,
10041655,CHEQUERS HOTEL LTD,877.5,Homelessness Private Sector,B&B Costs,28-Jun-21,2122/04,SME,N,
10041756,CLARKE FENCING LTD,256.03,Open Spaces,"Equipment, Tools & Materials",07-May-21,2122/04,SME,N,
10041169,D W ADAMS LTD,"2,968.00",Council House Adaptions,BMBS Repairs Work,24-Jun-21,2122/04,SME,N,
10041350,D W ADAMS LTD,"7,096.54",Council House Adaptions,Improvements,28-Jun-21,2122/04,SME,N,
10041397,D W ADAMS LTD,815.57,Building Services,Repairs,02-Jul-21,2122/04,SME,N,
10041423,D W ADAMS LTD,"5,110.00",Mand Disabled Facilities Grant,Grants,06-Jul-21,2122/04,SME,N,
10041535,D W ADAMS LTD,815.57,Building Services,Repairs,13-Jul-21,2122/04,SME,N,
10041640,D W ADAMS LTD,"3,153.00",Council House Adaptions,BMBS Repairs Work,19-Jul-21,2122/04,SME,N,
10041783,EAST OF ENGLAND LGA,"2,000.00",Management Team,Subscriptions,24-Jun-21,2122/04,SME,N,
10041546,CIVICA ELECTION SERVICES,"4,220.10",General Elections,Commercial Printing,17-Jun-21,2122/04,LGE,N,
10041548,CIVICA ELECTION SERVICES,"20,930.94",General Elections,Commercial Printing,17-Jun-21,2122/04,LGE,N,
10041549,CIVICA ELECTION SERVICES,"2,185.19",General Elections,Commercial Printing,06-Jul-21,2122/04,LGE,N,
10041574,CIVICA ELECTION SERVICES,"1,009.68",General Elections,Commercial Printing,17-Jun-21,2122/04,LGE,N,
20027381,CIVICA ELECTION SERVICES,"4,220.10",General Elections,Commercial Printing,17-Jun-21,2122/04,LGE,N,
10041002,ENGLISH SECURITY,319.28,Chilton Depot,Fire Prevention,07-Jun-21,2122/04,SME,Y,50%
10041002,ENGLISH SECURITY,234.29,Headquarters General,Fire Prevention,07-Jun-21,2122/04,SME,N,
10041002,ENGLISH SECURITY,"1,258.57",Sheltered Accommodation,Fire Prevention,07-Jun-21,2122/04,SME,N,
10041002,ENGLISH SECURITY,370.79,Temporary Accommodation,Fire Prevention,07-Jun-21,2122/04,SME,N,
10041002,ENGLISH SECURITY,"3,882.97",Tenancy Services,Fire Prevention,07-Jun-21,2122/04,SME,N,
10041002,ENGLISH SECURITY,246.59,Wenham Depot,Fire Prevention,07-Jun-21,2122/04,SME,Y,50%
10041471,ENVIROVENT LTD,460,Dampness & Condensation,Repairs,07-Jul-21,2122/04,SME,N,
10041472,ENVIROVENT LTD,460,Dampness & Condensation,Repairs,07-Jul-21,2122/04,SME,N,
10041589,ENVIROVENT LTD,560,Dampness & Condensation,Repairs,12-Jul-21,2122/04,SME,N,
10041590,ENVIROVENT LTD,460,Dampness & Condensation,Repairs,12-Jul-21,2122/04,SME,N,
10041591,ENVIROVENT LTD,460,Dampness & Condensation,Repairs,12-Jul-21,2122/04,SME,N,
10041615,ENVIROVENT LTD,460,Dampness & Condensation,Repairs,14-Jul-21,2122/04,SME,N,
10041437,FELGAINS CARE CENTRE,"2,307.00",Mand Disabled Facilities Grant,Grants,08-Jul-21,2122/04,SME,N,
10041451,FELGAINS CARE CENTRE,"2,115.00",Council House Adaptions,Improvements,06-Jul-21,2122/04,SME,N,
10040999,FELLBRIDGE BUILDING SERVICES,978.9,Building Services,Repairs,14-Jun-21,2122/04,SME,N,
10041054,FELLBRIDGE BUILDING SERVICES,306.64,Building Services,Repairs,17-Jun-21,2122/04,SME,N,
10041055,FELLBRIDGE BUILDING SERVICES,689.94,Building Services,Repairs,17-Jun-21,2122/04,SME,N,
10041187,FELLBRIDGE BUILDING SERVICES,275,Building Services,Repairs,24-Jun-21,2122/04,SME,N,
10041188,FELLBRIDGE BUILDING SERVICES,275,Building Services,Repairs,24-Jun-21,2122/04,SME,N,
10041247,FELLBRIDGE BUILDING SERVICES,454.98,Building Services,Repairs,28-Jun-21,2122/04,SME,N,
10041468,FELLBRIDGE BUILDING SERVICES,613.28,Building Services,Repairs,08-Jul-21,2122/04,SME,N,
10041492,FELLBRIDGE BUILDING SERVICES,"1,950.08",Building Services,Repairs,12-Jul-21,2122/04,SME,N,
10041493,FELLBRIDGE BUILDING SERVICES,"2,707.85",Building Services,Repairs,12-Jul-21,2122/04,SME,N,
10041494,FELLBRIDGE BUILDING SERVICES,763.91,Building Services,Repairs,12-Jul-21,2122/04,SME,N,
10041495,FELLBRIDGE BUILDING SERVICES,766.6,Building Services,Repairs,12-Jul-21,2122/04,SME,N,
10041498,FELLBRIDGE BUILDING SERVICES,"11,342.41",Building Services,Repairs,12-Jul-21,2122/04,SME,N,
10041499,FELLBRIDGE BUILDING SERVICES,"1,706.14",Building Services,Repairs,12-Jul-21,2122/04,SME,N,
10041501,FELLBRIDGE BUILDING SERVICES,310.75,Building Services,Repairs,12-Jul-21,2122/04,SME,N,
10041649,FELLBRIDGE BUILDING SERVICES,"1,931.65",Building Services,Repairs,12-Jul-21,2122/04,SME,N,
10041727,FELLBRIDGE BUILDING SERVICES,"8,246.02",Building Services,Repairs,22-Jul-21,2122/04,SME,N,
10041346,FORE-MOST GARAGE DOORS LTD,"1,764.25",Building Services,Repairs,30-Jun-21,2122/04,SME,N,
10041473,G & G SIGNS,290.6,Street Naming & Numbering,Signs,08-Jul-21,2122/04,SME,N,
10041487,G4S CASH SOLUTIONS LTD,458.86,Financial Servs,Contracted Services,02-May-21,2122/04,LGE,N,
10041739,INSTITUTE OF LICENSING (EVENTS) LTD,578,Taxi & Private Hire Licensing,Training,06-May-21,2122/04,SME,Y,50%
10040910,JMP SERVICES LTD,"1,165.00",Open Spaces,Contracted Services,04-Jun-21,2122/04,SME,N,
10041243,JMP SERVICES LTD,840,Open Spaces,Contracted Services,14-Jun-21,2122/04,SME,N,
10041705,KENDA-CLEAN,14,Chilton Depot,Window Cleaning,21-Jul-21,2122/04,SME,Y,50%
10041705,KENDA-CLEAN,954,Sheltered Accommodation,Window Cleaning,21-Jul-21,2122/04,SME,N,
10041705,KENDA-CLEAN,93,Temporary Accommodation,Window Cleaning,21-Jul-21,2122/04,SME,N,
10041705,KENDA-CLEAN,431,Tenancy Services,Window Cleaning,21-Jul-21,2122/04,SME,N,
10041659,KEYWAYS THE LOCKSMITHS LTD,456,Open Spaces,"Equipment, Tools & Materials",20-Jul-21,2122/04,SME,N,
10041348,M & H CIVIL ENGINEERING LTD,612.9,Building Services,Repairs,01-Jul-21,2122/04,SME,N,
10041533,M & H CIVIL ENGINEERING LTD,599.3,Building Services,Repairs,12-Jul-21,2122/04,SME,N,
10041322,MALJON TIMBER PRESERVATION LTD,778,Dampness & Condensation,Repairs,30-Jun-21,2122/04,SME,N,
10041681,MALJON TIMBER PRESERVATION LTD,538,Dampness & Condensation,Repairs,14-Jul-21,2122/04,SME,N,
10041596,MARTIN BROKERS ( UK ) PLC,410.96,Treasury Management,Prof & Consultancy Fees,30-Jun-21,2122/04,LGE,N,
10041103,MERCURY BUILDING SERVICES LTD,523,Sheltered Accommodation,Legionella Testing,21-Jun-21,2122/04,SME,N,
10041245,MERCURY BUILDING SERVICES LTD,"1,956.00",Pld Maint/Enhncmts-Kingfisher,Repairs,28-Jun-21,2122/04,SME,N,
10041245,MERCURY BUILDING SERVICES LTD,785,Kingfisher Leisure Centre,Repairs,28-Jun-21,2122/04,SME,N,
10041285,MERLIN DMS LTD,510,ICT,Contracted Services,01-Jun-21,2122/04,SME,Y,50%
10041552,MONTHIND CLEAN LTD,624.43,Jnt Waste Contract,General Cleaning,15-Jul-21,2122/04,LGE,Y,50%
10041717,NEEDHAM MARKET AERIALS LTD,"1,000.00",Sheltered Accommodation,Repairs,15-Jul-21,2122/04,SME,N,
10040721,ORWELL HOUSING ASSOCIATION LTD,293.58,Sheltered Accommodation,Contracted Services,31-May-21,2122/04,LGE,N,
10041186,ORWELL HOUSING ASSOCIATION LTD,524.56,Sheltered Accommodation,Contracted Services,31-Mar-21,2122/04,LGE,N,
10041229,ORWELL HOUSING ASSOCIATION LTD,"4,375.00",Other Temp Accommodation,Contracted Services,25-Jun-21,2122/04,LGE,N,
10041119,PITMAN BROTHERS (DECORATORS) LTD,"2,200.00",Building Services,Repairs,18-Jun-21,2122/04,SME,N,
10041137,REID PLUMBING & HEATING CONTRACTORS LTD,"8,848.23",Central Heating,Major Contracts,22-Jun-21,2122/04,SME,N,
10041139,REID PLUMBING & HEATING CONTRACTORS LTD,500,Building Services,Repairs,23-Jun-21,2122/04,SME,N,
10041141,REID PLUMBING & HEATING CONTRACTORS LTD,"26,015.32",Central Heating,Major Contracts,23-Jun-21,2122/04,SME,N,
10041292,REID PLUMBING & HEATING CONTRACTORS LTD,"26,849.12",Central Heating,Major Contracts,30-Jun-21,2122/04,SME,N,
10041560,REID PLUMBING & HEATING CONTRACTORS LTD,"22,090.92",Central Heating,Major Contracts,14-Jul-21,2122/04,SME,N,
10041686,REID PLUMBING & HEATING CONTRACTORS LTD,"14,877.46",Central Heating,Major Contracts,21-Jul-21,2122/04,SME,N,
10041732,REID PLUMBING & HEATING CONTRACTORS LTD,"19,078.82",Central Heating,Major Contracts,07-Jul-21,2122/04,SME,N,
10040855,SEAGER HOME SOLUTIONS,"8,387.79",Building Services,Repairs,28-May-21,2122/04,SME,N,
10041278,SEAGER HOME SOLUTIONS,"7,654.85",Building Services,Repairs,28-Jun-21,2122/04,SME,N,
10041190,SOLUTIONS ON SECURITY SERVICES,"4,365.68",Sheltered Accommodation,Repairs,24-Jun-21,2122/04,SME,N,
10041298,SOLUTIONS ON SECURITY SERVICES,704.38,Sheltered Accommodation,Repairs,30-Jun-21,2122/04,SME,N,
10041444,SSI SCHAEFER LTD,"3,980.25",Bins,Bins,06-Jul-21,2122/04,SME,Y,75%
10041439,SUFFOLK TREE SERVICES LTD,695,Public Tree Programme,Tree felling/maintenance,29-Jun-21,2122/04,SME,N,
10041467,SUFFOLK TREE SERVICES LTD,900,Amenity Areas,Tree felling/maintenance,25-Jun-21,2122/04,SME,N,
10041485,SUFFOLK TREE SERVICES LTD,800,CCTV Cameras,"Equipment, Tools & Materials",08-Jul-21,2122/04,SME,N,
10040965,SUREFIX,"5,700.00",Window & Door Rplcmts,Improvements,10-Jun-21,2122/04,SME,N,
10041082,SUREFIX,810.62,Building Services,Repairs,18-Jun-21,2122/04,SME,N,
10041196,SUREFIX,"2,058.78",Building Services,Repairs,18-Jun-21,2122/04,SME,N,
10041524,SUREFIX,253.82,Building Services,Repairs,10-Jul-21,2122/04,SME,N,
10041526,SUREFIX,421.92,Building Services,Repairs,07-Jul-21,2122/04,SME,N,
10041608,SUREFIX,273.88,Building Services,Repairs,24-Jun-21,2122/04,SME,N,
10041612,SUREFIX,850,Building Services,Repairs,15-Jul-21,2122/04,SME,N,
10041613,SUREFIX,446.17,Building Services,Repairs,13-Jul-21,2122/04,SME,N,
10041192,TDT ENTERPRISES LTD,"1,864.50",Conversions & Adaptations,Improvements,24-Jun-21,2122/04,SME,N,
10041189,THERMATECH,"3,280.00",Sheltered Accommodation,Fire Prevention,24-Jun-21,2122/04,SME,N,
10041634,THERMATECH,475,Sheltered Accommodation,Fire Prevention,14-Jul-21,2122/04,SME,N,
10041730,THERMATECH,275,Tenancy Services,Fire Prevention,22-Jul-21,2122/04,SME,N,
10041731,THERMATECH,475,Tenancy Services,Fire Prevention,22-Jul-21,2122/04,SME,N,
10041378,TREADFIRST TYRE & EXHAUST LIMITED,300,Taxi & Private Hire Licensing,Contracted Services,01-Jul-21,2122/04,SME,N,
10041275,ARCHANT COMMUNITY MEDIA LTD,709.15,Devt Management -Applications,Advertising&mkting (non-staff),26-Jun-21,2122/04,LGE,N,
10041371,ARCHANT COMMUNITY MEDIA LTD,656.62,Devt Management -Applications,Advertising&mkting (non-staff),30-Jun-21,2122/04,LGE,N,
10041372,ARCHANT COMMUNITY MEDIA LTD,709.15,Devt Management -Applications,Advertising&mkting (non-staff),30-Jun-21,2122/04,LGE,N,
10041506,ARCHANT COMMUNITY MEDIA LTD,709.15,Devt Management -Applications,Advertising&mkting (non-staff),10-Jul-21,2122/04,LGE,N,
10041726,ARCHANT COMMUNITY MEDIA LTD,577.83,Devt Management -Applications,Advertising&mkting (non-staff),19-Jul-21,2122/04,LGE,N,
10041405,LOCAL GOVERNMENT ASSOCIATION,379,Governance,Conference Expenses,05-Jul-21,2122/04,LGE,N,
10041573,CHUBB FIRE & SECURITY LTD,"2,481.10",Tenancy Services,Community Alarm Costs,10-Jun-21,2122/04,LGE,N,
10041272,NPS PROPERTY CONSULTANTS LTD,"1,992.00",Environmental Imps,Prof & Consultancy Fees,30-Jun-21,2122/04,LGE,N,
10041760,IPSWICH BOROUGH COUNCIL,"258,350.75",Shared Revenues Partnership,Major Contracts,23-Jul-21,2122/04,LGE,N,
20027399,EDF ENERGY,73,Belle Vue House,Electricity,09-Jul-21,2122/04,LGE,N,
20027399,EDF ENERGY,897.34,C Parks General,Electricity,09-Jul-21,2122/04,LGE,N,
20027399,EDF ENERGY,2.6,Calais St Depot,Electricity,09-Jul-21,2122/04,LGE,N,
20027399,EDF ENERGY,415.53,Chilton Depot,Electricity,09-Jul-21,2122/04,LGE,Y,50%
20027399,EDF ENERGY,260.76,Climate Change and Sustainabil,Electricity,09-Jul-21,2122/04,LGE,N,
20027399,EDF ENERGY,84.21,Community Safety-CCTV,Electricity,09-Jul-21,2122/04,LGE,N,
20027399,EDF ENERGY,11.85,Hadl Market,Electricity,09-Jul-21,2122/04,LGE,N,
20027399,EDF ENERGY,10.46,Headquarters General,Electricity,09-Jul-21,2122/04,LGE,N,
20027399,EDF ENERGY,622.04,HQ Energy,Electricity,09-Jul-21,2122/04,LGE,N,
20027399,EDF ENERGY,286.9,Public Conveniences,Electricity,09-Jul-21,2122/04,LGE,N,
20027399,EDF ENERGY,93.72,Sewage Treatment Works,Electricity,09-Jul-21,2122/04,LGE,N,
20027399,EDF ENERGY,"7,161.76",Sheltered Accommodation,Electricity,09-Jul-21,2122/04,LGE,N,
20027399,EDF ENERGY,138.46,SP Comm Alarms (Non-SH),Electricity,09-Jul-21,2122/04,LGE,N,
20027399,EDF ENERGY,362.08,Temporary Accommodation,Electricity,09-Jul-21,2122/04,LGE,N,
20027399,EDF ENERGY,"2,923.11",Tenancy Services,Electricity,09-Jul-21,2122/04,LGE,N,
20027399,EDF ENERGY,2.94,Wenham Depot,Electricity,09-Jul-21,2122/04,LGE,Y,50%
20027390,GPC BARCLAYS,"1,612.19",Current Assets,Barclaycard Control,16-Jul-21,2122/04,LGE,Y,27%
10041277,STANNAH STAIRLIFTS LTD,"3,181.00",Council House Adaptions,Improvements,29-Jun-21,2122/04,LGE,N,
20027397,COMPUTERSHARE ,819,Current Assets,ChildCare Vouchers-Control,26-Jul-21,2122/04,LGE,N,
20027382,BURES ST MARY PARISH COUNCIL,347.49,Street & Major Road Cleansing,Contributions & Donations,16-Jul-21,2122/04,SME,N,
10041639,CHATTISHAM & HINTLESHAM PARISH COUNCIL,"3,000.00",Comm Devt Grants,Grants,19-Jul-21,2122/04,SME,N,
10041740,CHELMONDISTON PARISH COUNCIL,343.76,Grants & Contrbns,Contributions & Donations,23-Jul-21,2122/04,SME,N,
20027384,EAST BERGHOLT PARISH COUNCIL,"1,158.30",Street & Major Road Cleansing,Contributions & Donations,16-Jul-21,2122/04,SME,N,
20027385,HOLBROOK PARISH COUNCIL,752.9,Street & Major Road Cleansing,Contributions & Donations,16-Jul-21,2122/04,SME,N,
20027387,LAVENHAM PARISH COUNCIL,"2,432.43",Street & Major Road Cleansing,Contributions & Donations,16-Jul-21,2122/04,SME,N,
10041838,LONG MELFORD PARISH COUNCIL,"22,000.00",CIL Funded REFCUS,Grants,29-Jul-21,2122/04,SME,N,
20027388,LONG MELFORD PARISH COUNCIL,"1,042.47",Street & Major Road Cleansing,Contributions & Donations,16-Jul-21,2122/04,SME,N,
10041665,NEW ANGLIA LOCAL ENTERPRISE PARTNERSHIP,"7,000.00",Management Team,Subscriptions,05-Jul-21,2122/04,SME,N,
10041638,PINEWOOD PARISH COUNCIL,"25,000.00",Comm Devt Grants,Grants,19-Jul-21,2122/04,SME,N,
20027386,STRATFORD ST MARY PARISH COUNCIL,289.58,Street & Major Road Cleansing,Contributions & Donations,16-Jul-21,2122/04,SME,N,
10041419,SUDBURY TOWN COUNCIL,288.4,Sheltered Accommodation,General Cleaning,05-Jul-21,2122/04,SME,N,
10040583,SUFFOLK COUNTY COUNCIL,"1,860.00",Land Chgs,Contracted Services,26-May-21,2122/04,LGE,N,
10040973,SUFFOLK COUNTY COUNCIL,"2,445.00",Land Chgs,Contracted Services,10-Jun-21,2122/04,LGE,N,
10041291,SUFFOLK COUNTY COUNCIL,"25,218.47",Domestic Waste,MRF Disposal,29-Jun-21,2122/04,LGE,N,
10041291,SUFFOLK COUNTY COUNCIL,"13,823.99",Garden Waste,Garden Waste Disposal,29-Jun-21,2122/04,LGE,N,
10041387,SUFFOLK COUNTY COUNCIL,"3,063.80",ICT,Contracted Services,01-Jul-21,2122/04,LGE,Y,50%
10041575,SUFFOLK COUNTY COUNCIL,708,Policy & Strategy (H & W),Contributions & Donations,15-Jul-21,2122/04,LGE,N,
10041601,SUFFOLK COUNTY COUNCIL,"17,042.00",RHSSF,Advertising&mkting (non-staff),15-Jul-21,2122/04,LGE,N,
10041691,SUFFOLK COUNTY COUNCIL,869.13,General Rechargeable Works,Misc Supplies & Services Costs,20-Jul-21,2122/04,LGE,N,
10041736,SUFFOLK COUNTY COUNCIL,"1,835.00",Land Chgs,Contracted Services,22-Jul-21,2122/04,LGE,N,
10041825,SUFFOLK COUNTY COUNCIL,"6,348.99",CIL Funded REFCUS,Grants,28-Jul-21,2122/04,LGE,N,
10041226,REED SPECIALIST RECRUITMENT LTD,835.46,Governance,Agency Staff,11-Jun-21,2122/04,LGE,Y,50%
10041227,REED SPECIALIST RECRUITMENT LTD,677.4,Governance,Agency Staff,11-Jun-21,2122/04,LGE,Y,50%
10041228,REED SPECIALIST RECRUITMENT LTD,790.3,Governance,Agency Staff,11-Jun-21,2122/04,LGE,Y,50%
10041249,REED SPECIALIST RECRUITMENT LTD,884.46,Governance,Agency Staff,18-Jun-21,2122/04,LGE,Y,50%
10041250,REED SPECIALIST RECRUITMENT LTD,835.46,Governance,Agency Staff,18-Jun-21,2122/04,LGE,Y,50%
10041251,REED SPECIALIST RECRUITMENT LTD,846.75,Governance,Agency Staff,18-Jun-21,2122/04,LGE,Y,50%
10041414,REED SPECIALIST RECRUITMENT LTD,835.46,Governance,Agency Staff,25-Jun-21,2122/04,LGE,Y,50%
10041415,REED SPECIALIST RECRUITMENT LTD,688.69,Governance,Agency Staff,25-Jun-21,2122/04,LGE,Y,50%
10041416,REED SPECIALIST RECRUITMENT LTD,869.33,Governance,Agency Staff,25-Jun-21,2122/04,LGE,Y,50%
10041515,REED SPECIALIST RECRUITMENT LTD,880.62,Governance,Agency Staff,02-Jul-21,2122/04,LGE,Y,50%
10041516,REED SPECIALIST RECRUITMENT LTD,835.46,Governance,Agency Staff,02-Jul-21,2122/04,LGE,Y,50%
10041517,REED SPECIALIST RECRUITMENT LTD,846.75,Governance,Agency Staff,02-Jul-21,2122/04,LGE,Y,50%
10041627,REED SPECIALIST RECRUITMENT LTD,677.4,Governance,Agency Staff,09-Jul-21,2122/04,LGE,Y,50%
10041628,REED SPECIALIST RECRUITMENT LTD,846.75,Governance,Agency Staff,09-Jul-21,2122/04,LGE,Y,50%
10041629,REED SPECIALIST RECRUITMENT LTD,884.46,Governance,Agency Staff,09-Jul-21,2122/04,LGE,Y,50%
10041764,REED SPECIALIST RECRUITMENT LTD,812.88,Governance,Agency Staff,16-Jul-21,2122/04,LGE,Y,50%
10041765,REED SPECIALIST RECRUITMENT LTD,835.46,Governance,Agency Staff,16-Jul-21,2122/04,LGE,Y,50%
10041766,REED SPECIALIST RECRUITMENT LTD,869.33,Governance,Agency Staff,16-Jul-21,2122/04,LGE,Y,50%
10041544,BT REDCARE,"1,415.06",Community Safety-CCTV,Telephone Costs,05-Jul-21,2122/04,LGE,N,
10041602,TRANSLATION & INTERPRETING PROVIDER LTD,490,Homelessness Private Sector,Prof & Consultancy Fees,15-Jul-21,2122/04,SME,N,
10041567,SUFFOLK COUNTY COUNCIL - PENSIONS ACCT,"1,475.00",Ext Audit,Audit Fees,13-Jul-21,2122/04,LGE,N,
10041568,SUFFOLK COUNTY COUNCIL - PENSIONS ACCT,"1,500.00",Ext Audit,Audit Fees,08-Jul-21,2122/04,LGE,N,
10041482,EAST OF ENGLAND CO-OPERATIVE SOCIETY LTD,"1,293.00",General Rechargeable Works,Misc Supplies & Services Costs,29-Jun-21,2122/04,LGE,N,
10041224,LEX AUTOLEASE,"4,391.40",Building Services,Lease Cars - Payment,16-Jun-21,2122/04,SME,Y,50%
10041225,LEX AUTOLEASE,"4,391.40",Building Services,Lease Cars - Payment,16-Jun-21,2122/04,SME,Y,50%
10041725,LANDMARK CHAMBERS,900,Devt Management -Applications,Legal ex App proj&pre-decn adv,12-Jul-21,2122/04,SME,N,
10041785,INSTITUTE OF LICENSING LTD,310,Taxi & Private Hire Licensing,Professional Subs (Staff),16-Apr-21,2122/04,LGE,N,
10040382,WHYBROW PROPERTY SOLUTIONS LTD,"15,999.03",Building Services,Repairs,12-May-21,2122/04,SME,N,
10040952,WHYBROW PROPERTY SOLUTIONS LTD,"4,237.46",Building Services,Repairs,10-Jun-21,2122/04,SME,N,
10040953,WHYBROW PROPERTY SOLUTIONS LTD,"7,784.33",Building Services,Repairs,10-Jun-21,2122/04,SME,N,
10041102,WHYBROW PROPERTY SOLUTIONS LTD,678,Conversions & Adaptations,Improvements,15-Jun-21,2122/04,SME,N,
10041198,WHYBROW PROPERTY SOLUTIONS LTD,631.96,Building Services,Repairs,04-Mar-21,2122/04,SME,N,
10041199,WHYBROW PROPERTY SOLUTIONS LTD,"9,028.66",Building Services,Repairs,15-Jun-21,2122/04,SME,N,
10041222,WHYBROW PROPERTY SOLUTIONS LTD,"11,058.38",Building Services,Repairs,24-Jun-21,2122/04,SME,N,
10041401,WHYBROW PROPERTY SOLUTIONS LTD,"3,616.00",Window & Door Rplcmts,Improvements,15-Jul-21,2122/04,SME,N,
10041507,WHYBROW PROPERTY SOLUTIONS LTD,"8,954.33",Building Services,Repairs,08-Jul-21,2122/04,SME,N,
10041098,L A C CLEANING CONTRACTORS LIMITED,"1,040.50",Building Services,Repairs,21-Jun-21,2122/04,SME,N,
10041125,L A C CLEANING CONTRACTORS LIMITED,"1,190.25",Building Services,Repairs,22-Jun-21,2122/04,SME,N,
10041168,L A C CLEANING CONTRACTORS LIMITED,633.33,Sheltered Accommodation,General Cleaning,26-Apr-21,2122/04,SME,N,
10041173,L A C CLEANING CONTRACTORS LIMITED,877.48,Wenham Depot TDP,General Cleaning,22-Jun-21,2122/04,SME,Y,50%
10041174,L A C CLEANING CONTRACTORS LIMITED,633.33,Sheltered Accommodation,General Cleaning,22-Jun-21,2122/04,SME,N,
10041565,L A C CLEANING CONTRACTORS LIMITED,455.5,Building Services,Repairs,14-Jul-21,2122/04,SME,N,
10041237,RA INFORMATION SYSTEMS ,"3,845.00",Open Spaces,"Equipment, Tools & Materials",28-Jun-21,2122/04,SME,Y,50%
10041420,ARMSTRONG YORK ASBESTOS ENVIRONMENTAL,"18,970.27",Asbestos Survey & Reinspection,Prof & Consultancy Fees,31-May-21,2122/04,SME,N,
10041622,ARMSTRONG YORK ASBESTOS ENVIRONMENTAL,"20,130.11",Asbestos Survey & Reinspection,Prof & Consultancy Fees,30-Jun-21,2122/04,SME,N,
10041332,CADCORP,"7,050.00",Addl Projects,Computer Equpt Purchases,30-Jun-21,2122/04,SME,Y,50%
10041332,CADCORP,"14,250.00",ICT,Software Licences (Corporate) ,30-Jun-21,2122/04,SME,Y,50%
10041370,TRADITION (UK) LTD,"1,336.99",Treasury Management,Prof & Consultancy Fees,30-Jun-21,2122/04,LGE,N,
10041457,CHILDCARE VOUCHER LTD EDENRED (UK GROUP),403.75,Health & Safety,"Equipment, Tools & Materials",12-Jul-21,2122/04,SME,N,
10041399,ROSSI LONG CONSULTING LTD,"2,500.00","Schoolfield, Glemsford",Prof & Consultancy Fees,30-Jun-21,2122/04,SME,N,
10041230,OPUS PEOPLE SOLUTIONS LTD,"1,243.64",Current Liabilities,Agency Staff Holding A/C,24-Jun-21,2122/04,SME,N,
10041398,OPUS PEOPLE SOLUTIONS LTD,"1,248.58",Current Liabilities,Agency Staff Holding A/C,01-Jul-21,2122/04,SME,N,
10041496,OPUS PEOPLE SOLUTIONS LTD,"1,122.37",Current Liabilities,Agency Staff Holding A/C,08-Jul-21,2122/04,SME,N,
10041630,OPUS PEOPLE SOLUTIONS LTD,735.49,Current Liabilities,Agency Staff Holding A/C,15-Jul-21,2122/04,SME,N,
10041768,OPUS PEOPLE SOLUTIONS LTD,307.58,Current Liabilities,Agency Staff Holding A/C,22-Jul-21,2122/04,SME,N,
10041382,ECOSYSTEMS TREE & GROUNDS CARE,"2,200.00",Public Tree Programme,Tree felling/maintenance,01-Jul-21,2122/04,SME,N,
10041383,ECOSYSTEMS TREE & GROUNDS CARE,"4,050.00",Public Tree Programme,Tree felling/maintenance,01-Jul-21,2122/04,SME,N,
10041384,ECOSYSTEMS TREE & GROUNDS CARE,800,Public Tree Programme,Tree felling/maintenance,01-Jul-21,2122/04,SME,N,
10041385,ECOSYSTEMS TREE & GROUNDS CARE,"4,050.00",Public Tree Programme,Tree felling/maintenance,01-Jul-21,2122/04,SME,N,
10041386,ECOSYSTEMS TREE & GROUNDS CARE,"1,070.00",Public Tree Programme,Tree felling/maintenance,01-Jul-21,2122/04,SME,N,
10041845,ECOSYSTEMS TREE & GROUNDS CARE,275,Amenity Areas,Tree felling/maintenance,29-Jul-21,2122/04,SME,N,
10041847,ECOSYSTEMS TREE & GROUNDS CARE,830,Public Tree Programme,Tree felling/maintenance,29-Jul-21,2122/04,SME,N,
10041848,ECOSYSTEMS TREE & GROUNDS CARE,840,Public Tree Programme,Tree felling/maintenance,01-Jul-21,2122/04,SME,N,
10041849,ECOSYSTEMS TREE & GROUNDS CARE,"1,525.00",Tenancy Services,Tree felling/maintenance,29-Jul-21,2122/04,SME,N,
10041511,CORNERSTONE BARRISTERS,"3,000.00",Devt Management -Applications,Legal Expenses,08-Jul-21,2122/04,SME,N,
10041809,CORNERSTONE BARRISTERS,"1,950.00",Devt Management -Applications,Legal Expenses,27-Apr-21,2122/04,SME,N,
10041282,THE OLDE BULL HOTEL,560,Homelessness Private Sector,B&B Costs,21-Jun-21,2122/04,SME,N,
10041410,THE OLDE BULL HOTEL,805,Homelessness Private Sector,B&B Costs,28-Jun-21,2122/04,SME,N,
10041587,THE OLDE BULL HOTEL,735,Homelessness Private Sector,B&B Costs,05-Jul-21,2122/04,SME,N,
10041656,THE OLDE BULL HOTEL,560,Homelessness Private Sector,B&B Costs,12-Jul-21,2122/04,SME,N,
10041389,VERTAS GROUP LTD,"8,469.82",Central Postal Serv,Postage,30-Jun-21,2122/04,SME,Y,50%
10041452,VERTAS GROUP LTD,"11,404.80",Unapportionable Central OHs,Security Systems,31-May-21,2122/04,SME,N,
10041830,VERTAS GROUP LTD,"6,221.88",Central Postal Serv,Postage,29-Jul-21,2122/04,SME,Y,50%
10041091,COLLINS SKIP HIRE,812.49,Building Services,Waste Disposal,21-Jun-21,2122/04,SME,Y,50%
10041235,COLLINS SKIP HIRE,812.49,Building Services,Waste Disposal,28-Jun-21,2122/04,SME,Y,50%
10041408,COLLINS SKIP HIRE,812.49,Building Services,Waste Disposal,05-Jul-21,2122/04,SME,Y,50%
10041481,COLLINS SKIP HIRE,270.83,Building Services,Waste Disposal,12-Jul-21,2122/04,SME,Y,50%
10041626,COLLINS SKIP HIRE,541.66,Building Services,Waste Disposal,19-Jul-21,2122/04,SME,Y,50%
10041600,POSTURITE LTD,250.11,Health & Safety,Furniture,15-Jul-21,2122/04,SME,Y,50%
10041595,INTEGRA USER GROUP,385,Financial Servs,Subscriptions,22-Feb-21,2122/04,SME,Y,50%
10041368,"DUNCAN, CAMERON AND HUTCHINSON LTD","99,750.00","1-3 Queensland, Shotley",Major Contracts,29-Jun-21,2122/04,SME,N,
10041369,"DUNCAN, CAMERON AND HUTCHINSON LTD","76,950.00","11-12 Ipswich, Brantham",Major Contracts,29-Jun-21,2122/04,SME,N,
10041407,SUFFOLK MARKET EVENTS,500,Hadl Market,Contracted Services,06-Jul-21,2122/04,SME,N,
10041407,SUFFOLK MARKET EVENTS,123,Economy & Business,Advertising&mkting (non-staff),06-Jul-21,2122/04,SME,N,
10041550,SUFFOLK MARKET EVENTS,713.12,RHSSF,"Equipment, Tools & Materials",14-Jul-21,2122/04,SME,Y,50%
10041550,SUFFOLK MARKET EVENTS,713.42,Innovate Local SIGIF,Misc Supplies & Services Costs,14-Jul-21,2122/04,SME,Y,50%
10041550,SUFFOLK MARKET EVENTS,285.37,BRRP-MarketTownVision&Invest,Prof & Consultancy Fees,14-Jul-21,2122/04,SME,Y,50%
10041554,SUFFOLK MARKET EVENTS,416.56,RHSSF,"Equipment, Tools & Materials",14-Jul-21,2122/04,SME,Y,50%
10041554,SUFFOLK MARKET EVENTS,416.74,Innovate Local SIGIF,Misc Supplies & Services Costs,14-Jul-21,2122/04,SME,Y,50%
10041554,SUFFOLK MARKET EVENTS,166.7,BRRP-MarketTownVision&Invest,Prof & Consultancy Fees,14-Jul-21,2122/04,SME,Y,50%
10041555,SUFFOLK MARKET EVENTS,586.06,RHSSF,"Equipment, Tools & Materials",14-Jul-21,2122/04,SME,Y,50%
10041555,SUFFOLK MARKET EVENTS,586.3,Innovate Local SIGIF,Misc Supplies & Services Costs,14-Jul-21,2122/04,SME,Y,50%
10041555,SUFFOLK MARKET EVENTS,234.53,BRRP-MarketTownVision&Invest,Prof & Consultancy Fees,14-Jul-21,2122/04,SME,Y,50%
10041850,SUFFOLK MARKET EVENTS,500,Hadl Market,Contracted Services,30-Jul-21,2122/04,SME,N,
10041597,NORFOLK STAIRLIFTS,"1,580.00",Mand Disabled Facilities Grant,Grants,15-Jul-21,2122/04,SME,N,
10041777,ADVANCE SUPPLIES,312.56,Sheltered Accommodation,Cleaning Materials,26-Jul-21,2122/04,SME,N,
10041203,HAYS SPECIALIST RECRUITMENT LTD,"1,030.15",Business Cont/Emergency Plan,Agency Staff,24-Jun-21,2122/04,LGE,Y,50%
10041338,HAYS SPECIALIST RECRUITMENT LTD,491.64,Business Cont/Emergency Plan,Agency Staff,30-Jun-21,2122/04,LGE,Y,50%
10041339,HAYS SPECIALIST RECRUITMENT LTD,"1,030.14",Business Cont/Emergency Plan,Agency Staff,30-Jun-21,2122/04,LGE,Y,50%
10041340,HAYS SPECIALIST RECRUITMENT LTD,753.85,Business Cont/Emergency Plan,Agency Staff,30-Jun-21,2122/04,LGE,Y,50%
10041459,HAYS SPECIALIST RECRUITMENT LTD,819.4,Business Cont/Emergency Plan,Agency Staff,07-Jul-21,2122/04,LGE,Y,50%
10041460,HAYS SPECIALIST RECRUITMENT LTD,"1,030.14",Business Cont/Emergency Plan,Agency Staff,07-Jul-21,2122/04,LGE,Y,50%
10041584,HAYS SPECIALIST RECRUITMENT LTD,819.4,Business Cont/Emergency Plan,Agency Staff,14-Jul-21,2122/04,LGE,Y,50%
10041651,HAYS SPECIALIST RECRUITMENT LTD,"3,744.00",Business Cont/Emergency Plan,Agency Staff,19-Jul-21,2122/04,LGE,Y,50%
10041648,RICHARD UTTING ASSOCIATES LLP,"1,003.73",New Bld/acquisition,Purchase of Land & Buildings,30-Jun-21,2122/04,SME,N,
10041648,RICHARD UTTING ASSOCIATES LLP,721.27,"Wolsey Grange, Sproughton S106",Prof & Consultancy Fees,30-Jun-21,2122/04,SME,N,
10040980,IDVERDE LIMITED,"14,117.16",Amenity Areas,Grds Maint Contract,01-Jun-21,2122/04,SME,N,
10040980,IDVERDE LIMITED,315.45,C Parks General,Grds Maint Contract,01-Jun-21,2122/04,SME,N,
10040980,IDVERDE LIMITED,60.3,Chilton Depot,Grds Maint Contract,01-Jun-21,2122/04,SME,Y,50%
10040980,IDVERDE LIMITED,411.58,Hadl C Parks,Grds Maint Contract,01-Jun-21,2122/04,SME,N,
10040980,IDVERDE LIMITED,4.37,Hadl Market,Grds Maint Contract,01-Jun-21,2122/04,SME,N,
10040980,IDVERDE LIMITED,83.88,Industrial Estates,Grds Maint Contract,01-Jun-21,2122/04,SME,N,
10040980,IDVERDE LIMITED,177.39,Kingfisher Leisure Centre,Grds Maint Contract,01-Jun-21,2122/04,SME,N,
10040980,IDVERDE LIMITED,141.55,Nyld & Sprtn Clsd Burial Grds,Grds Maint Contract,01-Jun-21,2122/04,SME,N,
10040980,IDVERDE LIMITED,"30,076.15",Open Spaces,Grds Maint Contract,01-Jun-21,2122/04,SME,N,
10040980,IDVERDE LIMITED,22.72,Pin Mill C Park,Grds Maint Contract,01-Jun-21,2122/04,SME,N,
10040980,IDVERDE LIMITED,"3,303.05",Public Conveniences,Grds Maint Contract,01-Jun-21,2122/04,SME,N,
10040980,IDVERDE LIMITED,18.24,Sewage Treatment Works,Grds Maint Contract,01-Jun-21,2122/04,SME,N,
10040980,IDVERDE LIMITED,766.63,Sheltered Accommodation,Grds Maint Contract,01-Jun-21,2122/04,SME,N,
10040980,IDVERDE LIMITED,"37,074.48",Street & Major Road Cleansing,Grds Maint Contract,01-Jun-21,2122/04,SME,N,
10040980,IDVERDE LIMITED,809.16,Sudb C Parks,Grds Maint Contract,01-Jun-21,2122/04,SME,N,
10040981,IDVERDE LIMITED,516.4,Tenancy Services,Grounds & Site Maintenance,01-Jun-21,2122/04,SME,N,
10041309,PUBLIC SEWER SERVICES,760.46,Structural Works,Improvements,30-Jun-21,2122/04,SME,N,
10041540,PUBLIC SEWER SERVICES,427.14,Building Services,Repairs,30-Jun-21,2122/04,SME,N,
10041592,PUBLIC SEWER SERVICES,"3,113.43",Building Services,Repairs,30-Jun-21,2122/04,SME,N,
10041658,PUBLIC SEWER SERVICES,785.28,Building Services,Repairs,20-Jul-21,2122/04,SME,N,
10041283,THE OLDE BULL YARD,350,Homelessness Private Sector,B&B Costs,21-Jun-21,2122/04,SME,N,
10041303,PRIVATE LANDLORD,650,Guaranteed Rent Scheme,Rent Payable,30-Jun-21,2122/04,SME,N,
10041798,PRIVATE LANDLORD,650,Guaranteed Rent Scheme,Rent Payable,28-Jul-21,2122/04,SME,N,
10041271,ASPECT CONTRACTS LTD,"7,794.00",Asbestos,Improvements,23-Jun-21,2122/04,LGE,N,
10041672,ASPECT CONTRACTS LTD,"6,080.00",Asbestos,Improvements,21-Jun-21,2122/04,LGE,N,
10041745,THE OFFSHOOT FOUNDATION,"1,000.00",Grants & Contrbns,Contributions & Donations,23-Jul-21,2122/04,SME,N,
10041714,HOUSING FINANCE ASSOCIATES LTD,"8,020.00",General/Supervision & Mgmt,Prof & Consultancy Fees,21-Jul-21,2122/04,SME,Y,50%
10041462,JEREMY BENN ASSOCIATES LTD,"1,565.00",Devt Policy & Local Plans,Prof & Consultancy Fees,08-Jul-21,2122/04,LGE,Y,50%
10041221,NORTHUMBRIAN WATER LTD,63.05,Chilton Depot,Legionella Testing,25-Jun-21,2122/04,LGE,Y,50%
10041221,NORTHUMBRIAN WATER LTD,34.15,HQ Energy,Legionella Testing,25-Jun-21,2122/04,LGE,N,
10041221,NORTHUMBRIAN WATER LTD,34.15,Lavenham TIC,Legionella Testing,25-Jun-21,2122/04,LGE,N,
10041221,NORTHUMBRIAN WATER LTD,202.31,Public Conveniences,Legionella Testing,25-Jun-21,2122/04,LGE,N,
10041221,NORTHUMBRIAN WATER LTD,28.9,Responsive maintenance,Legionella Testing,25-Jun-21,2122/04,LGE,N,
10041221,NORTHUMBRIAN WATER LTD,266.38,Sheltered Accommodation,Legionella Testing,25-Jun-21,2122/04,LGE,N,
10041221,NORTHUMBRIAN WATER LTD,91.95,Temporary Accommodation,Legionella Testing,25-Jun-21,2122/04,LGE,N,
10041221,NORTHUMBRIAN WATER LTD,28.9,Wenham Depot,Legionella Testing,25-Jun-21,2122/04,LGE,Y,50%
10040983,STORETEC SERVICES LTD,497.6,ICT,"Equipment, Tools & Materials",31-May-21,2122/04,SME,Y,50%
10041474,STORETEC SERVICES LTD,445.18,ICT,"Equipment, Tools & Materials",30-Jun-21,2122/04,SME,Y,50%
10041521,DOCUSIGN INC,710.89,General/Supervision & Mgmt,Subscriptions,11-Jan-21,2122/04,SME,Y,50%
10041529,DOCUSIGN INC,710.89,General/Supervision & Mgmt,Subscriptions,13-Jan-21,2122/04,SME,Y,50%
10041197,ENGIE REGENERATION LTD,"104,609.00",Major Imps,Major Contracts,07-Jun-21,2122/04,LGE,N,
10041239,ENGIE REGENERATION LTD,"194,829.64",Major Imps,Major Contracts,25-Jun-21,2122/04,LGE,N,
10041520,ENGIE REGENERATION LTD,"78,770.26",Major Imps,Major Contracts,13-Jul-21,2122/04,LGE,N,
10041566,ENGIE REGENERATION LTD,"64,096.00",Environmental Imps,Major Contracts,14-Jul-21,2122/04,LGE,N,
10041246,DLP PLANNING LIMITED,"1,837.50",Devt Management -Applications,Viability,28-May-21,2122/04,SME,N,
10041786,IPSWICH TOWN FOOTBALL CLUB CO. LTD,262,Management Team,Room Hire,31-Jan-20,2122/04,LGE,Y,50%
10041068,TOP FLOORS (EAST ANGLIA) LTD,690.64,Building Services,Repairs,16-Jun-21,2122/04,SME,N,
10041620,SUDBURYS,440,Guaranteed Rent Scheme,Rent Payable,19-Jul-21,2122/04,SME,N,
10041040,ICENI,723.23,"Angel Court, Hadleigh",Prof & Consultancy Fees,16-Jun-21,2122/04,SME,N,
10041432,ICENI,"1,097.53","11-12 Ipswich, Brantham",Prof & Consultancy Fees,06-Jul-21,2122/04,SME,N,
10041433,ICENI,"4,779.78","Bantocks Rd, Gt Walding S106",Prof & Consultancy Fees,06-Jul-21,2122/04,SME,N,
10041434,ICENI,"4,288.15",Waldingfield Rd S106 Andersons,Prof & Consultancy Fees,06-Jul-21,2122/04,SME,N,
10041435,ICENI,"4,375.39",Bourne Hill Wherstead S106 acq,Prof & Consultancy Fees,06-Jul-21,2122/04,SME,N,
10041818,ICENI,"4,375.39",Bourne Hill Wherstead S106 acq,Prof & Consultancy Fees,28-Jul-21,2122/04,SME,N,
10041820,ICENI,"4,779.78","Bantocks Rd, Gt Walding S106",Prof & Consultancy Fees,28-Jul-21,2122/04,SME,N,
10041436,WILLIAM H BROWN ESTATE AGENTS - SUDBURY,725,Guaranteed Rent Scheme,Rent Payable,06-Jul-21,2122/04,SME,N,
10041166,MILESTONE CATERING DESIGN LTD,"2,047.00",Pld Maint/Enhncmts-Kingfisher,Repairs,14-Apr-21,2122/04,ST,N,
10041513,ABBEYCROFT LEISURE,"1,036.00",Policy & Strategy (H & W),Contributions & Donations,13-Jul-21,2122/04,LGE,N,
10041514,ABBEYCROFT LEISURE,"1,457.19",Policy & Strategy (H & W),Contributions & Donations,13-Jul-21,2122/04,LGE,N,
10041633,THE WATERFRONT CONFERENCE COMPANY,253.3,Strategic Planning General,Conference Expenses,19-Jul-21,2122/04,SME,Y,50%
10041483,SUFFOLK POWER EQUIPMENT,"5,145.00",Vehicle and Plant Renewals,Plant & Vehicle - Purchase,12-Jul-21,2122/04,ST,N,
10041669,3 POINT PROPERTY MANAGEMENT LTD,550,Guaranteed Rent Scheme,Rent Payable,21-Jul-21,2122/04,SME,N,
10041583,EDMUNDSON ELECTRICAL LTD (IPSWICH),643.63,Building Services,"Equipment, Tools & Materials",09-Jul-21,2122/04,LGE,N,
10041650,EDMUNDSON ELECTRICAL LTD (IPSWICH),314.33,Building Services,"Equipment, Tools & Materials",16-Jul-21,2122/04,LGE,N,
10040509,WEST SUFFOLK COUNCIL,378,CCTV Cameras,"Equipment, Tools & Materials",24-May-21,2122/04,LGE,N,
10041287,APTL ENTERPRISES LTD,"4,648.00",PV Panels,Contracted Services,30-Jun-21,2122/04,SME,Y,44%
10041289,APTL ENTERPRISES LTD,"3,652.00",PV Panels,Contracted Services,30-Jun-21,2122/04,SME,Y,44%
10041477,APTL ENTERPRISES LTD,400,PV Panels,Repairs,30-Jun-21,2122/04,SME,N,
10041510,WASHCO LTD,313.76,Tenancy Services,Repairs,30-Jun-21,2122/04,SME,N,
10041252,ANGLIA COMMERCIAL FLOORING LTD,491.94,Building Services,Repairs,28-Jun-21,2122/04,SME,N,
10041255,ANGLIA COMMERCIAL FLOORING LTD,348,Building Services,Repairs,28-Jun-21,2122/04,SME,N,
10041256,ANGLIA COMMERCIAL FLOORING LTD,877.63,Building Services,Repairs,28-Jun-21,2122/04,SME,N,
10041259,ANGLIA COMMERCIAL FLOORING LTD,439.91,Building Services,Repairs,28-Jun-21,2122/04,SME,N,
10041261,ANGLIA COMMERCIAL FLOORING LTD,368.96,Building Services,Repairs,28-Jun-21,2122/04,SME,N,
10041264,ANGLIA COMMERCIAL FLOORING LTD,378.82,Building Services,Repairs,28-Jun-21,2122/04,SME,N,
10041269,ANGLIA COMMERCIAL FLOORING LTD,305.49,Building Services,Repairs,28-Jun-21,2122/04,SME,N,
10041647,LONG MELFORD COMMUNITY SPORTS TRUST,"2,500.00",Suffolk Community Restart Fund,Contributions from other LAs,19-Jul-21,2122/04,SME,N,
10041219,FLOWBIRD SMART CITY UK LIMITED,253.2,Hadl C Parks,Repairs,23-Jun-21,2122/04,SME,N,
10041581,FLOWBIRD SMART CITY UK LIMITED,253.2,Pin Mill C Park,Repairs,13-Jul-21,2122/04,SME,N,
20027398,ANGLIAN WATER BUS (NAT) LTD T/A WAVE,"1,454.38",Assets & Development,Water Rates - Metered,18-Jul-21,2122/04,LGE,N,
20027398,ANGLIAN WATER BUS (NAT) LTD T/A WAVE,11.97,C Parks General,Water Rates - Metered,18-Jul-21,2122/04,LGE,N,
20027398,ANGLIAN WATER BUS (NAT) LTD T/A WAVE,"8,583.88",Chilton Depot,Water Rates - Metered,18-Jul-21,2122/04,LGE,N,
20027398,ANGLIAN WATER BUS (NAT) LTD T/A WAVE,11.97,Friars Meadow Sudb,Water Rates - Metered,18-Jul-21,2122/04,LGE,N,
20027398,ANGLIAN WATER BUS (NAT) LTD T/A WAVE,84.76,General Rechargeable Works,Misc Supplies & Services Costs,18-Jul-21,2122/04,LGE,N,
20027398,ANGLIAN WATER BUS (NAT) LTD T/A WAVE,96.34,HQ Energy,Water Rates - Metered,18-Jul-21,2122/04,LGE,N,
20027398,ANGLIAN WATER BUS (NAT) LTD T/A WAVE,731.76,Public Conveniences,Water Rates - Metered,18-Jul-21,2122/04,LGE,N,
20027398,ANGLIAN WATER BUS (NAT) LTD T/A WAVE,"1,754.36",Sheltered Accommodation,Water Rates - Metered,18-Jul-21,2122/04,LGE,N,
20027398,ANGLIAN WATER BUS (NAT) LTD T/A WAVE,333.7,Temporary Accommodation,Water Rates - Metered,18-Jul-21,2122/04,LGE,N,
20027398,ANGLIAN WATER BUS (NAT) LTD T/A WAVE,88.04,Tenancy Services,Water Rates - Metered,18-Jul-21,2122/04,LGE,N,
10041101,TAYLOR WIMPEY EAST ANGLIA,"142,718.11",Property Acquisition,Prof & Consultancy Fees,08-Jun-21,2122/04,SME,N,
10041101,TAYLOR WIMPEY EAST ANGLIA,"111,990.55","Wolsey Grange, Sproughton S106",Purchase of Land & Buildings,08-Jun-21,2122/04,SME,N,
10041773,WLP PROPERTY RESIDENTIAL MANAGEMENT LTD,525,Guaranteed Rent Scheme,Rent Payable,27-Jul-21,2122/04,SME,N,
10041641,SUDBURY IN BLOOM,"1,000.00",Grants & Contrbns,Grants,19-Jul-21,2122/04,SME,N,
10041345,STUDLEY CAPITAL LIMITED,"3,825.00","BRRP-Hamilton,Boreham&BelleVue",Prof & Consultancy Fees,01-Jul-21,2122/04,ST,N,
10041440,PRIVATE LANDLORD,550,Guaranteed Rent Scheme,Rent Payable,07-Jul-21,2122/04,SME,N,
10041557,SPECIALIST ACCESS TRAINING LTD,595,Organisational Devt,Health & Safety Training,08-Jul-21,2122/04,SME,Y,50%
10041678,LAND USE CONSULTANTS LTD,"1,500.00",Nghbrhd Plan Designations,Prof & Consultancy Fees,20-Jul-21,2122/04,SME,N,
10041721,REEFER PROPERTIES LTD,695,Guaranteed Rent Scheme,Rent Payable,22-Jul-21,2122/04,SME,N,
10041688,OCN CONTRACTS,525,Other Temp Accommodation,Misc Supplies & Services Costs,01-Jul-21,2122/04,SME,N,
10041394,PENTACO CONSTRUCTION LTD,"205,446.00","Angel Court, Hadleigh",Major Contracts,15-Jun-21,2122/04,SME,N,
10041791,PENTACO CONSTRUCTION LTD,"82,935.00","Angel Court, Hadleigh",Major Contracts,02-Jul-21,2122/04,SME,N,
10041556,WADDINGTON BROWN LTD,977.75,Organisational Devt,Agency Staff,12-Jul-21,2122/04,SME,Y,50%
10041623,WADDINGTON BROWN LTD,"1,046.19",Organisational Devt,Agency Staff,19-Jul-21,2122/04,SME,Y,50%
10041693,FLOORS AND SNORES SUDBURY LTD,940,Temporary Accommodation,Furniture,19-Jul-21,2122/04,SME,N,
10041427,ELLISONS SOLICITORS,"107,783.19",Waldingfield Rd S106 Andersons,Prof & Consultancy Fees,09-Jun-21,2122/04,SME,N,
10041793,PRIVATE LANDLORD,490,Guaranteed Rent Scheme,Rent Payable,28-Jul-21,2122/04,SME,N,
20027379,PRIVATE LANDLORD,257.75,Guaranteed Rent Scheme,Rent Payable,08-Jul-21,2122/04,SME,N,
10041445,PRIVATE LANDLORD,650,Guaranteed Rent Scheme,Rent Payable,07-Jul-21,2122/04,ST,N,
10041643,PRIVATE LANDLORD,650,Guaranteed Rent Scheme,Rent Payable,20-Jul-21,2122/04,SME,N,
10041412,PAUL STEPHENSON ASSOCIATES,"1,300.00","Angel Court, Hadleigh",Contracted Services,06-Jul-21,2122/04,SME,N,
10041642,PRIVATE LANDLORD,"1,198.00",Guaranteed Rent Scheme,Rent Payable,20-Jul-21,2122/04,ST,N,
10041692,CHURCHES CONSERVATION TRUST,500,Economy & Business,Contributions & Donations,21-Jul-21,2122/04,SME,N,
10041448,PLUG-N-GO-LIMITED,142.34,Environmental Protection,Contracted Services,30-Jun-21,2122/04,SME,N,
10041448,PLUG-N-GO-LIMITED,192.46,Climate Change and Sustainabil,Misc Supplies & Services Costs,30-Jun-21,2122/04,SME,N,
10041447,RED CACTUS MEDIA LTD,"1,800.00",Homelessness Private Sector,Contracted Services,09-Jul-21,2122/04,SME,Y,50%
10041794,SEQUENCE UK LTD (WILLIAM H BROWN),700,Guaranteed Rent Scheme,Rent Payable,28-Jul-21,2122/04,LGE,N,
10041670,PRIVATE LANDLORD,550,Guaranteed Rent Scheme,Rent Payable,21-Jul-21,2122/04,ST,N,
10041455,AMPLIS CONSTRUCTION LTD,"23,271.34","Fences, Gates and Walls",Major Contracts,02-Jul-21,2122/04,SME,N,
10041743,AMPLIS CONSTRUCTION LTD,"1,228.02",Building Services,Repairs,23-Jul-21,2122/04,SME,N,
10041564,COUNTRYSTYLE RECYCLING LTD,"2,225.59",Bring Sites,Contracted Services,30-Jun-21,2122/04,SME,N,
10041402,DGL QUALITY MANAGEMENT LTD,560,"1-3 Queensland, Shotley",Prof & Consultancy Fees,30-Jun-21,2122/04,SME,N,
10041404,DGL QUALITY MANAGEMENT LTD,560,"11-12 Ipswich, Brantham",Prof & Consultancy Fees,30-Jun-21,2122/04,SME,N,
10041428,PRIVATE LANDLORD,786.5,Guaranteed Rent Scheme,Rent Payable,06-Jul-21,2122/04,ST,N,
10041441,PRIVATE LANDLORD,650,Guaranteed Rent Scheme,Rent Payable,07-Jul-21,2122/04,ST,N,
10040838,TRUETECH INTEGRATED LTD,"46,194.95",CCTV Cameras,"Equipment, Tools & Materials",05-Jun-21,2122/04,SME,N,
10041668,ENGAGE VISUALLY LTD,330,Policy & Strategy (H & W),Conference Expenses,21-May-21,2122/04,SME,Y,50%
10041480,ARAN INSULATION LTD,"1,210.00",Building Services,Contracted Services,12-Jul-21,2122/04,SME,N,
10041489,HM REVENUES & CUSTOMS (CIS TAX),"1,347.12",Current Liabilities,Bank Payments,13-Jul-21,2122/04,LGE,N,
10041429,PRIVATE LANDLORD,650,Guaranteed Rent Scheme,Rent Payable,06-Jul-21,2122/04,ST,N,
10041431,PRIVATE LANDLORD,800,Guaranteed Rent Scheme,Rent Payable,06-Jul-21,2122/04,SME,N,
10041616,DARREN MORSS T/A D & V MORSS,"5,185.00",Kitchens/Bathrooms,Improvements,16-Jul-21,2122/04,SME,N,
10041617,DARREN MORSS T/A D & V MORSS,"7,281.19",Building Services,Repairs,16-Jul-21,2122/04,SME,N,
10041618,DARREN MORSS T/A D & V MORSS,"4,168.98",Building Services,Repairs,16-Jul-21,2122/04,SME,N,
10041619,DARREN MORSS T/A D & V MORSS,"2,605.21",Building Services,Repairs,16-Jul-21,2122/04,SME,N,
10041742,DARREN MORSS T/A D & V MORSS,"1,046.05",Building Services,Repairs,23-Jul-21,2122/04,SME,N,
10041138,SWECO UK LTD,"1,035.00",Insurance Claims,Misc Premises Costs,22-Jun-21,2122/04,LGE,N,
10041422,PATTEN & NUNN,"5,290.39",Renovation/Home Repair Grants,Grants,05-Jul-21,2122/04,SME,N,
10041813,PATTEN & NUNN,"10,576.00",Renovation/Home Repair Grants,Grants,27-Jul-21,2122/04,SME,N,
10041302,ANGLIAN LIFTS LTD,"6,950.00",Mand Disabled Facilities Grant,Grants,29-Jun-21,2122/04,SME,N,
10041621,PRIVATE LANDLORD,550,Guaranteed Rent Scheme,Rent Payable,19-Jul-21,2122/04,ST,N,
10041395,GODFREY A PAYNE LIMITED,"18,119.90",Mand Disabled Facilities Grant,Grants,02-Jul-21,2122/04,SME,N,
10041421,LLOYDS GENERAL BUILDING MAINTENANCE,"6,000.00",Mand Disabled Facilities Grant,Grants,05-Jul-21,2122/04,SME,N,
10041449,NWES PROPERTY SERVICES LTD,"1,301.32",Major Imps,Rent Payable,23-Jun-21,2122/04,SME,N,
10041425,OIL TANK CHANGE LTD,"1,680.00",Renovation/Home Repair Grants,Grants,06-Jul-21,2122/04,SME,N,
10041438,MORGANS TREE SERVICES,580,Homeless Prevention Fund,Misc Supplies & Services Costs,08-Jul-21,2122/04,SME,N,
10041558,BRADFIELD FORGE BUILDING CONTRACTORS &,"14,320.65",Mand Disabled Facilities Grant,Grants,13-Jul-21,2122/04,SME,N,
20027395,ALDER & SON DEVELOPMENTS LTD,480,Rent Deposit Scheme,Misc Premises Costs,15-Jul-21,2122/04,SME,N,
10041667,HADLEIGH BADMINTON CLUB,303,Suffolk Community Restart Fund,Contributions from other LAs,20-Jul-21,2122/04,SME,N,
10041661,DRISCOLL KINGSTON SOLICITORS,"2,400.00",Building Services,Payments to Tenants,20-Jul-21,2122/04,SME,N,
10041741,G R DEACON T/A G R D PLUMBING,"6,800.00",Mand Disabled Facilities Grant,Grants,23-Jul-21,2122/04,SME,N,
927,DISTRICT COUNCILS' NETWORK,-379,Cost of Democracy,Conference Expenses,05-Jul-21,2122/04,LGE,N,
217,CIVICA ELECTION SERVICES,"-4,220.10",General Elections,Commercial Printing,15-Jul-21,2122/04,LGE,N,
20027378,WEST END REHOMING,-70,Dog Control,Collection Charges,01-Jul-21,2122/04,SME,N,
DDT0000992,CABOODLE TECHNOLGY LIMITED,152.4,Current Assets,LLOYDS GENERAL PAYMENTS,20-Jul-21,2122/04,SME,N,
10041826,ICENI,"-1,097.53","11-12 Ipswich, Brantham",Prof & Consultancy Fees,28-Jul-21,2122/04,SME,N,
10041671,AE WHITE SURFACING,"4,904.00",Council House Adaptions,Improvements,08-Jul-21,2122/05,SME,N,
10042109,AE WHITE SURFACING,"11,276.00",Estate Imps/parking areas,Improvements,09-Aug-21,2122/05,SME,N,
10042110,ANGLIAN WATER,"1,067.16",Water Sampling,Sampling & Analysis,09-Aug-21,2122/05,LGE,N,
10042266,BINDER LTD,"1,039.76",Sewage Treatment Works,Contracted Services,09-Aug-21,2122/05,SME,N,
10042118,BLUE FLAME (COLCHESTER) LTD,"24,381.47",Planned Maint - Heating,Property Servicing,29-Jul-21,2122/05,SME,N,
20027402,BLUE FLAME (COLCHESTER) LTD,"39,754.68",Current Liabilities,Cert IBS Creditors Holding ac,04-Aug-21,2122/05,SME,N,
20027410,BLUE FLAME (COLCHESTER) LTD,"6,602.39",Current Liabilities,Cert IBS Creditors Holding ac,11-Aug-21,2122/05,SME,N,
20027415,BLUE FLAME (COLCHESTER) LTD,"10,514.81",Current Liabilities,Cert IBS Creditors Holding ac,18-Aug-21,2122/05,SME,N,
20027422,BLUE FLAME (COLCHESTER) LTD,"14,622.90",Current Liabilities,Cert IBS Creditors Holding ac,25-Aug-21,2122/05,SME,N,
10042044,BOTTOMLINE TECHNOLOGIES,639.65,ICT,Software Licnse (Line of Bus) ,31-May-21,2122/05,LGE,Y,50%
10042045,BOTTOMLINE TECHNOLOGIES,667.8,ICT,Software Licnse (Line of Bus) ,30-Jun-21,2122/05,LGE,Y,50%
10042047,BOTTOMLINE TECHNOLOGIES,639.65,ICT,Software Licnse (Line of Bus) ,30-Apr-21,2122/05,LGE,Y,50%
10042048,BOTTOMLINE TECHNOLOGIES,667.8,ICT,Software Licnse (Line of Bus) ,31-Jul-21,2122/05,LGE,Y,50%
10041994,BSI,633,Bldg Regs Chargeable Serv,Prof & Consultancy Fees,01-Aug-21,2122/05,LGE,N,
10042013,AQUASAMPLERS,538,Water Sampling,Sampling & Analysis,31-Jul-21,2122/05,SME,N,
10042078,CHEQUERS HOTEL LTD,617.5,Homelessness Private Sector,B&B Costs,02-Aug-21,2122/05,SME,N,
10042081,CHEQUERS HOTEL LTD,682.5,Homelessness Private Sector,B&B Costs,02-Aug-21,2122/05,SME,N,
10041853,CLARKES OF WALSHAM LTD,"1,904.79",Building Services,"Equipment, Tools & Materials",30-Jul-21,2122/05,SME,N,
10042159,CLARKES OF WALSHAM LTD,"1,069.60",Building Services,Repairs,12-Aug-21,2122/05,SME,N,
10041779,D W ADAMS LTD,"12,309.37",Council House Adaptions,Improvements,27-Jul-21,2122/05,SME,N,
10042039,D W ADAMS LTD,"5,091.63",Council House Adaptions,Improvements,30-Jul-21,2122/05,SME,N,
10042062,D W ADAMS LTD,587,Building Services,Repairs,06-Aug-21,2122/05,SME,N,
10042179,D W ADAMS LTD,"3,484.00",Council House Adaptions,Improvements,16-Aug-21,2122/05,SME,N,
10042216,D W ADAMS LTD,555,Building Services,Repairs,17-Aug-21,2122/05,SME,N,
10042273,D W ADAMS LTD,"3,188.00",Council House Adaptions,BMBS Repairs Work,20-Aug-21,2122/05,SME,N,
10042043,DMA HEALTH AND SAFETY LTD,300,Planned Maint - Ext Painting,Prof & Consultancy Fees,05-Aug-21,2122/05,SME,N,
10041943,ENER-G SWITCH2 LTD,402.12,Building Services,Repairs,30-Jul-21,2122/05,SME,N,
10042147,ENVIROVENT LTD,709,Dampness & Condensation,Repairs,05-Aug-21,2122/05,SME,N,
10042148,ENVIROVENT LTD,709,Dampness & Condensation,Repairs,12-Aug-21,2122/05,SME,N,
10042286,FELGAINS CARE CENTRE,"1,292.00",Mand Disabled Facilities Grant,Grants,23-Aug-21,2122/05,SME,N,
10041834,FELLBRIDGE BUILDING SERVICES,"14,181.08",Building Services,Repairs,29-Jul-21,2122/05,SME,N,
10041835,FELLBRIDGE BUILDING SERVICES,"4,042.55",Building Services,Repairs,29-Jul-21,2122/05,SME,N,
10041836,FELLBRIDGE BUILDING SERVICES,571.68,Building Services,Repairs,29-Jul-21,2122/05,SME,N,
10041964,FELLBRIDGE BUILDING SERVICES,"6,994.75",Building Services,Repairs,02-Aug-21,2122/05,SME,N,
10042049,FELLBRIDGE BUILDING SERVICES,"1,188.23",Building Services,Repairs,05-Aug-21,2122/05,SME,N,
10042105,FELLBRIDGE BUILDING SERVICES,529.75,Building Services,Repairs,09-Aug-21,2122/05,SME,N,
10042195,FELLBRIDGE BUILDING SERVICES,"4,142.56",Building Services,Repairs,16-Aug-21,2122/05,SME,N,
10042256,FELLBRIDGE BUILDING SERVICES,991.36,Building Services,Repairs,19-Aug-21,2122/05,SME,N,
10042257,FELLBRIDGE BUILDING SERVICES,"2,563.95",Building Services,Repairs,19-Aug-21,2122/05,SME,N,
10042258,FELLBRIDGE BUILDING SERVICES,"1,678.26",Building Services,Repairs,19-Aug-21,2122/05,SME,N,
10041932,FORE-MOST GARAGE DOORS LTD,"1,159.00",Building Services,Repairs,31-Jul-21,2122/05,SME,N,
10042085,GHB ROOFING,"1,350.00",Building Services,Repairs,30-Jul-21,2122/05,SME,N,
10042086,GHB ROOFING,"1,190.00",Building Services,Repairs,30-Jul-21,2122/05,SME,N,
10042163,GHB ROOFING,970,Building Services,Repairs,30-Jul-21,2122/05,SME,N,
10042073,GLASDON UK LTD,540.23,RHSSF,"Equipment, Tools & Materials",06-Aug-21,2122/05,LGE,N,
10041933,HAYES DIGGINS BUILDERS,"1,249.00",Kingfisher Leisure Centre,Repairs,02-Aug-21,2122/05,SME,N,
10042053,HEALTH SHIELD FRIENDLY SOCIETY LTD,688.8,Organisational Devt,Subscriptions,09-Jun-21,2122/05,SME,Y,50%
10042054,HEALTH SHIELD FRIENDLY SOCIETY LTD,688.8,Organisational Devt,Subscriptions,09-Jun-21,2122/05,SME,Y,50%
10041952,JMP SERVICES LTD,450,Street & Major Road Cleansing,Contracted Services,02-Aug-21,2122/05,SME,N,
10041761,KEN GRIME & SON LTD,798.17,Building Services,Repairs,26-Jul-21,2122/05,SME,N,
10041762,KEN GRIME & SON LTD,896.3,Building Services,Repairs,26-Jul-21,2122/05,SME,N,
10041970,KEYWAYS THE LOCKSMITHS LTD,425,Sheltered Accommodation,Repairs,03-Aug-21,2122/05,SME,N,
10041971,KEYWAYS THE LOCKSMITHS LTD,938,Temporary Accommodation,Misc Premises Costs,03-Aug-21,2122/05,SME,N,
10042280,KEYWAYS THE LOCKSMITHS LTD,856,Other Temp Accommodation,"Equipment, Tools & Materials",20-Aug-21,2122/05,SME,N,
10042183,M & H CIVIL ENGINEERING LTD,380.58,Building Services,Repairs,14-Aug-21,2122/05,SME,N,
10042184,M & H CIVIL ENGINEERING LTD,676.15,Building Services,Repairs,14-Aug-21,2122/05,SME,N,
10042185,M & H CIVIL ENGINEERING LTD,485.58,Building Services,Repairs,14-Aug-21,2122/05,SME,N,
10041827,MALJON TIMBER PRESERVATION LTD,864,Dampness & Condensation,Repairs,28-Jul-21,2122/05,SME,N,
10042170,MALJON TIMBER PRESERVATION LTD,"1,231.00",Dampness & Condensation,Repairs,14-Jul-21,2122/05,SME,N,
10042252,MALJON TIMBER PRESERVATION LTD,564,Dampness & Condensation,Repairs,17-Aug-21,2122/05,SME,N,
10042117,MB TREES (EAST ANGLIA) LTD,"2,700.00",Tenancy Services,Tree felling/maintenance,10-Aug-21,2122/05,SME,N,
10041840,MERCURY BUILDING SERVICES LTD,553,Sheltered Accommodation,Repairs,30-Jul-21,2122/05,SME,N,
10042104,MERCURY BUILDING SERVICES LTD,638.44,Hadleigh Pool,Repairs,09-Aug-21,2122/05,SME,N,
10042104,MERCURY BUILDING SERVICES LTD,248.89,Kingfisher Leisure Centre,Repairs,09-Aug-21,2122/05,SME,N,
10042226,MONTHIND CLEAN LTD,624.43,Jnt Waste Contract,General Cleaning,15-Aug-21,2122/05,LGE,Y,50%
10041972,NAVIGUS PLANNING LTD,"1,260.00",Devt Policy & Local Plans,Prof & Consultancy Fees,03-Aug-21,2122/05,SME,N,
10041919,NEEDHAM MARKET AERIALS LTD,790,Sheltered Accommodation,Repairs,02-Aug-21,2122/05,SME,N,
10041939,ORWELL HOUSING ASSOCIATION LTD,540.28,Sheltered Accommodation,Contracted Services,30-Jul-21,2122/05,LGE,N,
10042129,PAPERWORK (UK) LTD,361,Sudb C Parks,Ticketing,11-Aug-21,2122/05,SME,N,
10042161,PITMAN BROTHERS (DECORATORS) LTD,825,Building Services,Repairs,13-Aug-21,2122/05,SME,N,
10042351,PSC SYSTEMS,315.24,Financial Servs,Contracted Services,03-Aug-21,2122/05,SME,N,
10041780,REID PLUMBING & HEATING CONTRACTORS LTD,"5,187.33",Central Heating,Major Contracts,27-Jul-21,2122/05,SME,N,
10042004,REID PLUMBING & HEATING CONTRACTORS LTD,"23,809.31",Central Heating,Major Contracts,04-Aug-21,2122/05,SME,N,
10042124,REID PLUMBING & HEATING CONTRACTORS LTD,"10,519.74",Central Heating,Major Contracts,11-Aug-21,2122/05,SME,N,
10042222,REID PLUMBING & HEATING CONTRACTORS LTD,"4,052.44",Central Heating,Major Contracts,18-Aug-21,2122/05,SME,N,
10042247,REID PLUMBING & HEATING CONTRACTORS LTD,"8,871.23",Central Heating,Major Contracts,18-Aug-21,2122/05,SME,N,
10042221,RICOH UK LTD,665.97,ICT,Photocopying,05-Aug-21,2122/05,LGE,Y,50%
10041808,SEAGER HOME SOLUTIONS,"5,872.00",Mand Disabled Facilities Grant,Grants,26-Jul-21,2122/05,SME,N,
10041839,SEAGER HOME SOLUTIONS,"10,486.97",Building Services,Repairs,26-Jul-21,2122/05,SME,N,
10041963,SOLACE GROUP LTD,595,Cost of Democracy,Member's Courses & Conferences,31-Jul-21,2122/05,SME,N,
10041606,SUREFIX,900,Window & Door Rplcmts,Improvements,14-Jul-21,2122/05,SME,N,
10041859,SUREFIX,850,Building Services,Repairs,30-Jul-21,2122/05,SME,N,
10041860,SUREFIX,"1,028.88",Building Services,Repairs,30-Jul-21,2122/05,SME,N,
10041861,SUREFIX,316.44,Building Services,Repairs,23-Jul-21,2122/05,SME,N,
10041862,SUREFIX,260,Building Services,Repairs,16-Jul-21,2122/05,SME,N,
10041987,SUREFIX,300,Building Services,Repairs,05-Aug-21,2122/05,SME,N,
10041989,SUREFIX,843.84,Building Services,Repairs,04-Aug-21,2122/05,SME,N,
10042275,SUREFIX,850,Building Services,Repairs,13-Aug-21,2122/05,SME,N,
10042276,SUREFIX,527.4,Building Services,Repairs,12-Aug-21,2122/05,SME,N,
10041757,TANKCHANGE LTD,"2,095.00",Central Heating,Improvements,25-Jul-21,2122/05,SME,N,
10041759,TANKCHANGE LTD,"2,095.00",Central Heating,Improvements,25-Jul-21,2122/05,SME,N,
10041729,THERMATECH,"3,440.00",Sheltered Accommodation,Fire Prevention,22-Jul-21,2122/05,SME,N,
10041729,THERMATECH,"2,960.00",Sheltered Accommodation,Fire Prevention,22-Jul-21,2122/05,SME,N,
10042023,THERMATECH,"3,760.00",Sheltered Accommodation,Fire Prevention,04-Aug-21,2122/05,SME,N,
10040970,VALUATION OFFICE AGENCY,481.25,Devt Management -Applications,Prof & Consultancy Fees,11-Jun-21,2122/05,LGE,N,
10042384,VODAFONE CORPORATE LTD,465,ICT,Telephone Costs,21-Jul-21,2122/05,LGE,N,
10041832,WINDIMAN LTD,569.7,Building Services,Repairs,29-Jul-21,2122/05,SME,N,
10041993,WINDIMAN LTD,735,Building Services,Repairs,03-Aug-21,2122/05,SME,N,
10042219,WINDIMAN LTD,"1,362.38",Building Services,Repairs,17-Aug-21,2122/05,SME,N,
10041770,ARCHANT COMMUNITY MEDIA LTD,709.15,Devt Management -Applications,Advertising&mkting (non-staff),24-Jul-21,2122/05,LGE,N,
10041997,ARCHANT COMMUNITY MEDIA LTD,709.15,Devt Management -Applications,Advertising&mkting (non-staff),31-Jul-21,2122/05,LGE,N,
10042083,ARCHANT COMMUNITY MEDIA LTD,709.15,Devt Management -Applications,Advertising&mkting (non-staff),07-Aug-21,2122/05,LGE,N,
10042193,ARCHANT COMMUNITY MEDIA LTD,709.15,Devt Management -Applications,Advertising&mkting (non-staff),14-Aug-21,2122/05,LGE,N,
10042313,ARCHANT COMMUNITY MEDIA LTD,709.15,Devt Management -Applications,Advertising&mkting (non-staff),21-Aug-21,2122/05,LGE,N,
10041789,CHUBB FIRE & SECURITY LTD,790,Sheltered Accommodation,Community Alarm Costs,22-Jul-21,2122/05,LGE,N,
10041792,CHUBB FIRE & SECURITY LTD,300,Sheltered Accommodation,Repairs,27-Jul-21,2122/05,LGE,N,
20027418,EDF ENERGY,75.06,Belle Vue House,Electricity,18-Aug-21,2122/05,LGE,N,
20027418,EDF ENERGY,942.52,C Parks General,Electricity,18-Aug-21,2122/05,LGE,N,
20027418,EDF ENERGY,2.68,Calais St Depot,Electricity,18-Aug-21,2122/05,LGE,N,
20027418,EDF ENERGY,412.34,Chilton Depot,Electricity,18-Aug-21,2122/05,LGE,Y,50%
20027418,EDF ENERGY,311.29,Climate Change and Sustainabil,Electricity,18-Aug-21,2122/05,LGE,N,
20027418,EDF ENERGY,86.87,Community Safety-CCTV,Electricity,18-Aug-21,2122/05,LGE,N,
20027418,EDF ENERGY,11.76,Hadl Market,Electricity,18-Aug-21,2122/05,LGE,N,
20027418,EDF ENERGY,10.78,Headquarters General,Electricity,18-Aug-21,2122/05,LGE,N,
20027418,EDF ENERGY,683.72,HQ Energy,Electricity,18-Aug-21,2122/05,LGE,N,
20027418,EDF ENERGY,35.13,Old School House,Electricity,18-Aug-21,2122/05,LGE,N,
20027418,EDF ENERGY,242.54,Public Conveniences,Electricity,18-Aug-21,2122/05,LGE,N,
20027418,EDF ENERGY,90.8,Sewage Treatment Works,Electricity,18-Aug-21,2122/05,LGE,N,
20027418,EDF ENERGY,"6,752.60",Sheltered Accommodation,Electricity,18-Aug-21,2122/05,LGE,N,
20027418,EDF ENERGY,138.83,SP Comm Alarms (Non-SH),Electricity,18-Aug-21,2122/05,LGE,N,
20027418,EDF ENERGY,514.88,Temporary Accommodation,Electricity,18-Aug-21,2122/05,LGE,N,
20027418,EDF ENERGY,"2,944.30",Tenancy Services,Electricity,18-Aug-21,2122/05,LGE,N,
20027418,EDF ENERGY,2.59,Wenham Depot,Electricity,18-Aug-21,2122/05,LGE,Y,50%
10041995,ERNST & YOUNG LLP,"39,177.00",Ext Audit,Audit Fees,29-Jul-21,2122/05,LGE,N,
20027414,GPC BARCLAYS,"2,227.21",Current Assets,Barclaycard Control,16-Aug-21,2122/05,LGE,Y,10%
10041925,BRETTENHAM PARISH COUNCIL,"1,000.00",Grants & Contrbns,Grants,03-Aug-21,2122/05,SME,N,
10042240,CHATTISHAM & HINTLESHAM PARISH COUNCIL,"9,920.83",CIL Funded REFCUS,Grants,18-Aug-21,2122/05,SME,N,
10041817,EAST BERGHOLT PARISH COUNCIL,"1,000.00",Grants & Contrbns,Contributions & Donations,27-Jul-21,2122/05,SME,N,
10042123,LAVENHAM PARISH COUNCIL,"9,999.99",CIL Funded REFCUS,Grants,11-Aug-21,2122/05,SME,N,
10042236,LAVENHAM PARISH COUNCIL,"5,625.00",CIL Funded REFCUS,Grants,17-Aug-21,2122/05,SME,N,
10042238,LAVENHAM PARISH COUNCIL,"5,625.00",CIL Funded REFCUS,Grants,17-Aug-21,2122/05,SME,N,
10042063,SUFFOLK COUNTY COUNCIL,"32,648.66",Domestic Waste,MRF Disposal,05-Aug-21,2122/05,LGE,N,
10042063,SUFFOLK COUNTY COUNCIL,"23,488.08",Garden Waste,Garden Waste Disposal,05-Aug-21,2122/05,LGE,N,
10042128,SUFFOLK COUNTY COUNCIL,"18,030.00",AONB Contributions,Contributions & Donations,11-Aug-21,2122/05,LGE,N,
10042128,SUFFOLK COUNTY COUNCIL,"13,532.00",AONB Contributions,Contributions & Donations,11-Aug-21,2122/05,LGE,N,
10042140,SUFFOLK COUNTY COUNCIL,600,Open Spaces,Repairs,11-Aug-21,2122/05,LGE,N,
10042162,SUFFOLK COUNTY COUNCIL,"7,085.17",Organisational Devt,Legal Expenses,12-Aug-21,2122/05,LGE,Y,50%
10042229,SUFFOLK COUNTY COUNCIL,"63,398.14",Trade Waste,Trade Waste Disposal,17-Aug-21,2122/05,LGE,N,
10042282,SUFFOLK COUNTY COUNCIL,"1,560.00",Land Chgs,Contracted Services,19-Aug-21,2122/05,LGE,N,
10042362,SUFFOLK COUNTY COUNCIL,"10,657.64",Organisational Devt,Contracted Services,25-Aug-21,2122/05,LGE,Y,50%
10041966,FENN WRIGHT LLP,900,General/Supervision & Mgmt,Prof & Consultancy Fees,30-Aug-21,2122/05,SME,N,
10042357,FENN WRIGHT LLP,450,General/Supervision & Mgmt,Prof & Consultancy Fees,26-Aug-21,2122/05,SME,N,
10041934,REED SPECIALIST RECRUITMENT LTD,688.69,Governance,Agency Staff,30-Jul-21,2122/05,LGE,Y,50%
10041935,REED SPECIALIST RECRUITMENT LTD,835.46,Governance,Agency Staff,30-Jul-21,2122/05,LGE,Y,50%
10041936,REED SPECIALIST RECRUITMENT LTD,541.92,Governance,Agency Staff,30-Jul-21,2122/05,LGE,Y,50%
10042196,REED SPECIALIST RECRUITMENT LTD,931.43,Governance,Agency Staff,30-Jul-21,2122/05,LGE,Y,50%
10042197,REED SPECIALIST RECRUITMENT LTD,519.34,Governance,Agency Staff,30-Jul-21,2122/05,LGE,Y,50%
10042198,REED SPECIALIST RECRUITMENT LTD,688.69,Governance,Agency Staff,30-Jul-21,2122/05,LGE,Y,50%
10042260,REED SPECIALIST RECRUITMENT LTD,643.53,Governance,Agency Staff,06-Aug-21,2122/05,LGE,Y,50%
10042262,REED SPECIALIST RECRUITMENT LTD,846.75,Governance,Agency Staff,06-Aug-21,2122/05,LGE,Y,50%
10042263,REED SPECIALIST RECRUITMENT LTD,846.75,Governance,Agency Staff,13-Aug-21,2122/05,LGE,Y,50%
10042264,REED SPECIALIST RECRUITMENT LTD,835.46,Governance,Agency Staff,13-Aug-21,2122/05,LGE,Y,50%
10042202,BUPA,513.31,Organisational Devt,Professional Subs (Staff),01-Jul-21,2122/05,LGE,Y,50%
10042379,TELEFONICA UK LIMITED - O2,372.1,ICT,Telephone Costs,27-Aug-21,2122/05,LGE,Y,50%
10042182,BT PAYMENT SERVICES,"4,987.82",ICT,Telephone Costs,04-Aug-21,2122/05,LGE,Y,50%
10041812,EAST OF ENGLAND CO-OPERATIVE SOCIETY LTD,"4,910.00",Cost of Democracy,Room Hire,23-Jul-21,2122/05,LGE,N,
10042281,LEX AUTOLEASE,257.55,Building Services,Lease Cars - Payment,09-Aug-21,2122/05,SME,Y,50%
20027405,GAZPROM ENERGY,68.28,Belle Vue House,Gas,24-Jun-21,2122/05,SME,N,
20027405,GAZPROM ENERGY,"3,510.17",Hadleigh Pool,Gas,24-Jun-21,2122/05,SME,N,
20027405,GAZPROM ENERGY,35.97,HQ Energy,Gas,24-Jun-21,2122/05,SME,N,
20027405,GAZPROM ENERGY,"1,818.51",Sheltered Accommodation,Gas,24-Jun-21,2122/05,SME,N,
20027405,GAZPROM ENERGY,101.9,Temporary Accommodation,Gas,24-Jun-21,2122/05,SME,N,
20027419,GAZPROM ENERGY,65.71,Belle Vue House,Gas,18-Aug-21,2122/05,SME,N,
20027419,GAZPROM ENERGY,"1,509.33",Hadleigh Pool,Gas,18-Aug-21,2122/05,SME,N,
20027419,GAZPROM ENERGY,37.18,HQ Energy,Gas,18-Aug-21,2122/05,SME,N,
20027419,GAZPROM ENERGY,"8,103.18",Kingfisher Leisure Centre,Gas,18-Aug-21,2122/05,SME,N,
20027419,GAZPROM ENERGY,"1,666.17",Sheltered Accommodation,Gas,18-Aug-21,2122/05,SME,N,
20027419,GAZPROM ENERGY,100.96,Temporary Accommodation,Gas,18-Aug-21,2122/05,SME,N,
10042114,CYCLESCHEME LTD,"1,498.32",Current Assets,Cycling Scheme,10-Aug-21,2122/05,SME,N,
10042035,THE QUAY THEATRE AT SUDBURY,680.41,Suffolk Community Restart Fund,Contributions from other LAs,06-Aug-21,2122/05,SME,N,
10041782,WHYBROW PROPERTY SOLUTIONS LTD,"6,472.41",Kitchens/Bathrooms,Improvements,08-Jul-21,2122/05,SME,N,
10041829,WHYBROW PROPERTY SOLUTIONS LTD,"7,289.24",Building Services,Repairs,08-Jul-21,2122/05,SME,N,
10041908,WHYBROW PROPERTY SOLUTIONS LTD,"5,758.97",Building Services,Repairs,30-Jul-21,2122/05,SME,N,
10042042,WHYBROW PROPERTY SOLUTIONS LTD,912.91,Tenancy Services,Repairs,21-Jul-21,2122/05,SME,N,
10041752,L A C CLEANING CONTRACTORS LIMITED,633.33,Sheltered Accommodation,General Cleaning,26-Jul-21,2122/05,SME,N,
10041753,L A C CLEANING CONTRACTORS LIMITED,668,Wenham Depot TDP,General Cleaning,26-Jul-21,2122/05,SME,Y,50%
10042069,L A C CLEANING CONTRACTORS LIMITED,"1,390.50",Building Services,Repairs,06-Aug-21,2122/05,SME,N,
10042146,L A C CLEANING CONTRACTORS LIMITED,565,Other Temp Accommodation,General Cleaning,06-Aug-21,2122/05,SME,N,
10042088,ARMSTRONG YORK ASBESTOS ENVIRONMENTAL,"16,452.94",Asbestos Survey & Reinspection,Prof & Consultancy Fees,30-Jul-21,2122/05,SME,N,
10041910,TRADITION (UK) LTD,"3,660.27",Treasury Management,Prof & Consultancy Fees,30-Jul-21,2122/05,LGE,N,
10042158,TRADITION (UK) LTD,"3,660.27",Treasury Management,Prof & Consultancy Fees,30-Jul-21,2122/05,LGE,N,
10042421,HOLBROOK & DISTRICT PRE-SCHOOL PLAYGROUP,"1,500.00",Suffolk Community Restart Fund,Contributions from other LAs,27-Aug-21,2122/05,SME,N,
10041958,OPUS PEOPLE SOLUTIONS LTD,673.96,Current Liabilities,Agency Staff Holding A/C,29-Jul-21,2122/05,SME,N,
10042209,OPUS PEOPLE SOLUTIONS LTD,307.58,Current Liabilities,Agency Staff Holding A/C,12-Aug-21,2122/05,SME,N,
10042318,OPUS PEOPLE SOLUTIONS LTD,307.58,Current Liabilities,Agency Staff Holding A/C,19-Aug-21,2122/05,SME,N,
10041811,ROSE BUILDERS LTD,"76,337.50",Hadleigh Pool Refurb,Grounds & Site Maintenance,28-Jul-21,2122/05,SME,N,
10041841,ECOSYSTEMS TREE & GROUNDS CARE,"1,525.00",Amenity Areas,Tree felling/maintenance,01-Jul-21,2122/05,SME,N,
10042006,THE OLDE BULL HOTEL,315,Homelessness Private Sector,B&B Costs,26-Jul-21,2122/05,SME,N,
10041784,VERTAS GROUP LTD,"10,368.00",Unapportionable Central OHs,Security Systems,30-Jun-21,2122/05,SME,N,
10042199,VERTAS GROUP LTD,264.84,Central Postal Serv,Postage,16-Aug-21,2122/05,SME,N,
10041775,COLLINS SKIP HIRE,"1,083.32",Building Services,Waste Disposal,26-Jul-21,2122/05,SME,Y,50%
10042176,COLLINS SKIP HIRE,541.66,Building Services,Waste Disposal,05-Aug-21,2122/05,SME,Y,50%
10042181,COLLINS SKIP HIRE,541.66,Building Services,Waste Disposal,16-Aug-21,2122/05,SME,Y,50%
10042322,POSTURITE LTD,366.66,Health & Safety,Furniture,24-Aug-21,2122/05,SME,Y,50%
10041803,MATT ALLMAN LTD T/A MOVEITCLEARITFINDIT,"1,800.00",Environmental Protection,Contracted Services,18-Jul-21,2122/05,SME,N,
10041856,"DUNCAN, CAMERON AND HUTCHINSON LTD","99,750.00","1-3 Queensland, Shotley",Major Contracts,29-Jul-21,2122/05,SME,N,
10041857,"DUNCAN, CAMERON AND HUTCHINSON LTD","102,600.00","11-12 Ipswich, Brantham",Major Contracts,29-Jul-21,2122/05,SME,N,
10042177,SUFFOLK MARKET EVENTS,416.56,RHSSF,"Equipment, Tools & Materials",16-Aug-21,2122/05,SME,Y,50%
10042177,SUFFOLK MARKET EVENTS,416.74,Innovate Local SIGIF,Misc Supplies & Services Costs,16-Aug-21,2122/05,SME,Y,50%
10042177,SUFFOLK MARKET EVENTS,166.7,BRRP-MarketTownVision&Invest,Prof & Consultancy Fees,16-Aug-21,2122/05,SME,Y,50%
10042296,SUFFOLK MARKET EVENTS,500,Hadl Market,Contracted Services,25-Aug-21,2122/05,SME,N,
10041497,IDVERDE LIMITED,"14,117.16",Amenity Areas,Grds Maint Contract,12-Jul-21,2122/05,SME,N,
10041497,IDVERDE LIMITED,315.45,C Parks General,Grds Maint Contract,12-Jul-21,2122/05,SME,N,
10041497,IDVERDE LIMITED,60.3,Chilton Depot,Grds Maint Contract,12-Jul-21,2122/05,SME,Y,50%
10041497,IDVERDE LIMITED,411.58,Hadl C Parks,Grds Maint Contract,12-Jul-21,2122/05,SME,N,
10041497,IDVERDE LIMITED,4.37,Hadl Market,Grds Maint Contract,12-Jul-21,2122/05,SME,N,
10041497,IDVERDE LIMITED,83.88,Industrial Estates,Grds Maint Contract,12-Jul-21,2122/05,SME,N,
10041497,IDVERDE LIMITED,177.39,Kingfisher Leisure Centre,Grds Maint Contract,12-Jul-21,2122/05,SME,N,
10041497,IDVERDE LIMITED,141.55,Nyld & Sprtn Clsd Burial Grds,Grds Maint Contract,12-Jul-21,2122/05,SME,N,
10041497,IDVERDE LIMITED,"30,076.15",Open Spaces,Grds Maint Contract,12-Jul-21,2122/05,SME,N,
10041497,IDVERDE LIMITED,22.72,Pin Mill C Park,Grds Maint Contract,12-Jul-21,2122/05,SME,N,
10041497,IDVERDE LIMITED,"3,303.05",Public Conveniences,Grds Maint Contract,12-Jul-21,2122/05,SME,N,
10041497,IDVERDE LIMITED,18.24,Sewage Treatment Works,Grds Maint Contract,12-Jul-21,2122/05,SME,N,
10041497,IDVERDE LIMITED,766.63,Sheltered Accommodation,Grds Maint Contract,12-Jul-21,2122/05,SME,N,
10041497,IDVERDE LIMITED,"37,074.48",Street & Major Road Cleansing,Grds Maint Contract,12-Jul-21,2122/05,SME,N,
10041497,IDVERDE LIMITED,809.16,Sudb C Parks,Grds Maint Contract,12-Jul-21,2122/05,SME,N,
10041810,IDVERDE LIMITED,"14,117.16",Amenity Areas,Grds Maint Contract,28-Jul-21,2122/05,SME,N,
10041810,IDVERDE LIMITED,315.45,C Parks General,Grds Maint Contract,28-Jul-21,2122/05,SME,N,
10041810,IDVERDE LIMITED,60.3,Chilton Depot,Grds Maint Contract,28-Jul-21,2122/05,SME,Y,50%
10041810,IDVERDE LIMITED,411.58,Hadl C Parks,Grds Maint Contract,28-Jul-21,2122/05,SME,N,
10041810,IDVERDE LIMITED,4.37,Hadl Market,Grds Maint Contract,28-Jul-21,2122/05,SME,N,
10041810,IDVERDE LIMITED,83.88,Industrial Estates,Grds Maint Contract,28-Jul-21,2122/05,SME,N,
10041810,IDVERDE LIMITED,177.39,Kingfisher Leisure Centre,Grds Maint Contract,28-Jul-21,2122/05,SME,N,
10041810,IDVERDE LIMITED,141.55,Nyld & Sprtn Clsd Burial Grds,Grds Maint Contract,28-Jul-21,2122/05,SME,N,
10041810,IDVERDE LIMITED,"30,076.15",Open Spaces,Grds Maint Contract,28-Jul-21,2122/05,SME,N,
10041810,IDVERDE LIMITED,22.72,Pin Mill C Park,Grds Maint Contract,28-Jul-21,2122/05,SME,N,
10041810,IDVERDE LIMITED,"3,303.05",Public Conveniences,Grds Maint Contract,28-Jul-21,2122/05,SME,N,
10041810,IDVERDE LIMITED,18.24,Sewage Treatment Works,Grds Maint Contract,28-Jul-21,2122/05,SME,N,
10041810,IDVERDE LIMITED,766.63,Sheltered Accommodation,Grds Maint Contract,28-Jul-21,2122/05,SME,N,
10041810,IDVERDE LIMITED,"37,074.48",Street & Major Road Cleansing,Grds Maint Contract,28-Jul-21,2122/05,SME,N,
10041810,IDVERDE LIMITED,809.16,Sudb C Parks,Grds Maint Contract,28-Jul-21,2122/05,SME,N,
10042402,MANSION HOUSE PUBLISHING LTD,340,Economy & Business,Advertising&mkting (non-staff),24-Aug-21,2122/05,SME,Y,50%
10042111,CRAEMER UK LTD,"4,500.00",Bins,Bins,04-Aug-21,2122/05,SME,Y,50%
10042305,NATHANIEL LICHFIELD & PARTNERS LTD,"9,417.50",Devt Policy & Local Plans,Prof & Consultancy Fees,19-Aug-21,2122/05,SME,Y,50%
10042153,PUBLIC SEWER SERVICES,"1,189.00",Sheltered Accommodation,Misc Premises Costs,30-Jul-21,2122/05,SME,N,
10042087,ASPECT CONTRACTS LTD,"6,100.00",Asbestos,Improvements,09-Aug-21,2122/05,LGE,N,
10041772,NORTHUMBRIAN WATER LTD,63.05,Chilton Depot,Legionella Testing,26-Jul-21,2122/05,LGE,Y,50%
10041772,NORTHUMBRIAN WATER LTD,34.15,HQ Energy,Legionella Testing,26-Jul-21,2122/05,LGE,N,
10041772,NORTHUMBRIAN WATER LTD,34.15,Lavenham TIC,Legionella Testing,26-Jul-21,2122/05,LGE,N,
10041772,NORTHUMBRIAN WATER LTD,28.9,Old School House,Legionella Testing,26-Jul-21,2122/05,LGE,N,
10041772,NORTHUMBRIAN WATER LTD,202.31,Public Conveniences,Legionella Testing,26-Jul-21,2122/05,LGE,N,
10041772,NORTHUMBRIAN WATER LTD,28.9,Responsive maintenance,Legionella Testing,26-Jul-21,2122/05,LGE,N,
10041772,NORTHUMBRIAN WATER LTD,266.38,Sheltered Accommodation,Legionella Testing,26-Jul-21,2122/05,LGE,N,
10041772,NORTHUMBRIAN WATER LTD,63.05,Temporary Accommodation,Legionella Testing,26-Jul-21,2122/05,LGE,N,
10041772,NORTHUMBRIAN WATER LTD,28.9,Wenham Depot,Legionella Testing,26-Jul-21,2122/05,LGE,Y,50%
10041976,AIRMAX REMOTE LTD,421.07,Building Services,Plant & Vehicle - Other costs,31-Jul-21,2122/05,SME,Y,50%
10041824,ENGIE REGENERATION LTD,"11,873.66",Kitchens/Bathrooms,Major Contracts,28-Jul-21,2122/05,LGE,N,
10042135,ENGIE REGENERATION LTD,"77,615.00",Environmental Imps,Major Contracts,11-Aug-21,2122/05,LGE,N,
10041965,SKYGUARD LTD T/A PEOPLESAFE,360,Health & Safety,"Equipment, Tools & Materials",03-Aug-21,2122/05,SME,Y,50%
10042227,SUDBURYS,440,Guaranteed Rent Scheme,Rent Payable,18-Aug-21,2122/05,SME,N,
10041819,ICENI,"4,288.15",Waldingfield Rd S106 Andersons,Prof & Consultancy Fees,28-Jul-21,2122/05,SME,N,
10041822,ICENI,"2,195.06","11-12 Ipswich, Brantham",Prof & Consultancy Fees,28-Jul-21,2122/05,SME,N,
10041823,ICENI,845.98,"1-3 Queensland, Shotley",Prof & Consultancy Fees,28-Jul-21,2122/05,SME,N,
10041823,ICENI,422.99,"16 Queensland, Shotley",Prof & Consultancy Fees,28-Jul-21,2122/05,SME,N,
10042033,GREENFUTURE SOLUTIONS LTD,"8,204.00",Mand Disabled Facilities Grant,Grants,06-Aug-21,2122/05,SME,N,
10041930,WILLIAM H BROWN ESTATE AGENTS - SUDBURY,725,Guaranteed Rent Scheme,Rent Payable,04-Aug-21,2122/05,SME,N,
10042131,PORTAL PLAN QUEST LTD,366,Devt Management -Applications,Planning Fees,11-Aug-21,2122/05,SME,N,
10042089,ABBEYCROFT LEISURE,"17,778.94",Hadleigh Pool,Major Contracts,30-Jul-21,2122/05,LGE,N,
10042089,ABBEYCROFT LEISURE,"8,033.97",New Hadl Pl & Leisure Centre,Major Contracts,30-Jul-21,2122/05,LGE,N,
10042089,ABBEYCROFT LEISURE,"34,924.09",Kingfisher Leisure Centre,Major Contracts,30-Jul-21,2122/05,LGE,N,
10042397,ABBEYCROFT LEISURE,"2,500.00",Suffolk Community Restart Fund,Contributions from other LAs,27-Aug-21,2122/05,LGE,N,
10041985,GOVERNMENT EVENTS,289,Management Team,Conference Expenses,07-Jul-21,2122/05,SME,Y,50%
10041869,A C LEIGH (NORWICH) LTD,282.84,Building Services,"Equipment, Tools & Materials",27-Jul-21,2122/05,SME,N,
10041870,A C LEIGH (NORWICH) LTD,252.79,Building Services,"Equipment, Tools & Materials",26-Jul-21,2122/05,SME,N,
10041895,A C LEIGH (NORWICH) LTD,519.88,Building Services,"Equipment, Tools & Materials",03-Jun-21,2122/05,SME,N,
10041804,SUFFOLK POWER EQUIPMENT,393,Open Spaces,"Equipment, Tools & Materials",27-Jul-21,2122/05,ST,N,
10042301,3 POINT PROPERTY MANAGEMENT LTD,550,Guaranteed Rent Scheme,Rent Payable,23-Aug-21,2122/05,SME,N,
10042084,WEST SUFFOLK COUNCIL,"131,305.39",Legal,Contributions to other Bodies,06-Aug-21,2122/05,LGE,Y,50%
10042034,DG ACCESSIBLE DESIGNS,"3,246.49",Mand Disabled Facilities Grant,Grants,06-Aug-21,2122/05,SME,N,
10042116,HUGHES TRADE,594.18,Other HRA Temp Accommodation,Furniture,10-Aug-21,2122/05,LGE,N,
10042165,HUGHES TRADE,499.48,Temporary Accommodation,Furniture,13-Aug-21,2122/05,LGE,N,
10041851,APTL ENTERPRISES LTD,"4,648.00",PV Panels,Contracted Services,31-Jul-21,2122/05,SME,Y,44%
10041852,APTL ENTERPRISES LTD,"3,652.00",PV Panels,Contracted Services,31-Jul-21,2122/05,SME,Y,44%
10042010,ANGLIA COMMERCIAL FLOORING LTD,303.38,Building Services,Repairs,03-Aug-21,2122/05,SME,N,
10042017,ANGLIA COMMERCIAL FLOORING LTD,677.57,Building Services,Repairs,03-Aug-21,2122/05,SME,N,
10042020,ANGLIA COMMERCIAL FLOORING LTD,459.08,Building Services,Repairs,03-Aug-21,2122/05,SME,N,
10042112,BENNETT PLC T/A BENNETT HOMES,"1,000.00",New Bld/acquisition,Purchase of Land & Buildings,16-Mar-21,2122/05,SME,N,
10041673,TAYLOR WIMPEY EAST ANGLIA,"157,403.74",Property Acquisition,Prof & Consultancy Fees,20-Jul-21,2122/05,SME,N,
10041673,TAYLOR WIMPEY EAST ANGLIA,"123,514.32","Wolsey Grange, Sproughton S106",Purchase of Land & Buildings,20-Jul-21,2122/05,SME,N,
10042325,WLP PROPERTY RESIDENTIAL MANAGEMENT LTD,525,Guaranteed Rent Scheme,Rent Payable,25-Aug-21,2122/05,SME,N,
10042394,LITTLE WALDINGFIELD PARISH ROOM,683.88,Suffolk Community Restart Fund,Contributions from other LAs,27-Aug-21,2122/05,SME,N,
10041977,STUDLEY CAPITAL LIMITED,"3,150.00","BRRP-Hamilton,Boreham&BelleVue",Prof & Consultancy Fees,03-Aug-21,2122/05,ST,N,
10041951,IMPERIAL TREASURY SERVICES LTD,756.16,Treasury Management,Prof & Consultancy Fees,31-Jul-21,2122/05,SME,N,
10042246,IMPERIAL TREASURY SERVICES LTD,410.96,Treasury Management,Prof & Consultancy Fees,30-Jun-21,2122/05,SME,N,
10042399,HOLTON ST MARY VILLAGE HALL,"2,500.00",Suffolk Community Restart Fund,Contributions from other LAs,27-Aug-21,2122/05,SME,N,
10041962,TIAA LTD,"4,250.00",Internal Audit,Contracted Services,02-Aug-21,2122/05,SME,Y,50%
10042071,TIAA LTD,"4,250.00",Internal Audit,Contracted Services,01-Jun-21,2122/05,SME,Y,50%
10042072,TIAA LTD,"4,250.00",Internal Audit,Contracted Services,01-Jul-21,2122/05,SME,Y,50%
10042217,LAND USE CONSULTANTS LTD,"6,920.00",Devt Policy & Local Plans,Prof & Consultancy Fees,30-Jun-21,2122/05,SME,Y,50%
10041920,PINSENT MASONS LLP,"1,147.50",Belle Vue Refurb/Rplcmt,Prof & Consultancy Fees,27-Jul-21,2122/05,LGE,N,
10042294,REEFER PROPERTIES LTD,695,Guaranteed Rent Scheme,Rent Payable,25-Aug-21,2122/05,SME,N,
10042233,OCN CONTRACTS,350,Other Temp Accommodation,Furniture,11-Aug-21,2122/05,SME,N,
10042133,PENTACO CONSTRUCTION LTD,"128,234.00","Angel Court, Hadleigh",Major Contracts,06-Aug-21,2122/05,SME,N,
10042213,WADDINGTON BROWN LTD,977.75,Organisational Devt,Agency Staff,09-Aug-21,2122/05,SME,Y,50%
10042214,WADDINGTON BROWN LTD,"1,026.64",Organisational Devt,Agency Staff,16-Aug-21,2122/05,SME,Y,50%
10041866,TOTALMOBILE LTD,"10,000.00",Tenancy Services,Software Licnse (Line of Bus) ,30-Jul-21,2122/05,SME,Y,50%
10042242,BRANDON WETROOMS,"5,141.56",Mand Disabled Facilities Grant,Grants,19-Aug-21,2122/05,SME,N,
10042244,BRANDON WETROOMS,"7,172.42",Mand Disabled Facilities Grant,Grants,19-Aug-21,2122/05,SME,N,
10041950,CHELSWORTH ALL SAINTS PCC,"3,380.00",CIL Funded REFCUS,Grants,05-Aug-21,2122/05,SME,N,
10041973,THE KINETIC SCIENCE FOUNDATION,"1,252.00",Open Spaces,Contracted Services,02-Aug-21,2122/05,SME,N,
10041974,THE KINETIC SCIENCE FOUNDATION,"2,495.00",RHSSF,Advertising&mkting (non-staff),02-Aug-21,2122/05,SME,N,
20027420,PRIVATE LANDLORD,650,Guaranteed Rent Scheme,Rent Payable,19-Aug-21,2122/05,ST,N,
20027421,PRIVATE LANDLORD,650,Guaranteed Rent Scheme,Rent Payable,19-Aug-21,2122/05,SME,N,
10041931,PAUL STEPHENSON ASSOCIATES,780,"Angel Court, Hadleigh",Contracted Services,01-Jul-21,2122/05,SME,N,
10042272,PRIVATE LANDLORD,"1,198.00",Guaranteed Rent Scheme,Rent Payable,20-Aug-21,2122/05,ST,N,
20027404,JLV PROPERTY LTD,500,Guaranteed Rent Scheme,Rent Payable,05-Aug-21,2122/05,SME,N,
20027404,JLV PROPERTY LTD,750,Guaranteed Rent Scheme,Misc Supplies & Services Costs,05-Aug-21,2122/05,SME,N,
10041578,BUCHER MUNICIPAL LTD,"132,757.00",Vehicle and Plant Renewals,Plant & Vehicle - Purchase,15-Jul-21,2122/05,LGE,N,
10042315,SEQUENCE UK LTD (WILLIAM H BROWN),700,Guaranteed Rent Scheme,Rent Payable,24-Aug-21,2122/05,LGE,N,
10042248,PRIVATE LANDLORD,550,Guaranteed Rent Scheme,Rent Payable,19-Aug-21,2122/05,ST,N,
10042323,PRIVATE LANDLORD,700,Rent Deposit Scheme,Misc Premises Costs,25-Aug-21,2122/05,ST,N,
10041927,PRIVATE LANDLORD,490,Rent Deposit Scheme,Misc Premises Costs,04-Aug-21,2122/05,SME,N,
10041937,AMPLIS CONSTRUCTION LTD,"20,126.88","Fences, Gates and Walls",Major Contracts,29-Jul-21,2122/05,SME,N,
10042269,AMPLIS CONSTRUCTION LTD,"3,657.40",Building Services,Repairs,20-Aug-21,2122/05,SME,N,
10042270,AMPLIS CONSTRUCTION LTD,"3,580.42",Building Services,Repairs,20-Aug-21,2122/05,SME,N,
10041928,PRIVATE LANDLORD,786.5,Guaranteed Rent Scheme,Rent Payable,04-Aug-21,2122/05,ST,N,
10041957,ELITE BUILDING PROJECTS LTD,988,Empty Homes Loan,Grants,02-Aug-21,2122/05,SME,N,
10042107,PRIVATE LANDLORD,650,Guaranteed Rent Scheme,Rent Payable,11-Aug-21,2122/05,ST,N,
10042293,CEL SOLICITORS,"1,117.00",Building Services,Payments to Tenants,25-Aug-21,2122/05,SME,N,
10042121,COUNTRYSTYLE RECYCLING LTD,420.22,Bring Sites,Contracted Services,31-Jul-21,2122/05,SME,N,
10042003,ANDERSON DESIGN & BUILD LIMITED,"197,982.45",Waldingfield Rd S106 Andersons,Prof & Consultancy Fees,30-Jun-21,2122/05,SME,N,
10041914,DGL QUALITY MANAGEMENT LTD,560,"1-3 Queensland, Shotley",Prof & Consultancy Fees,31-Jul-21,2122/05,SME,N,
10041915,DGL QUALITY MANAGEMENT LTD,560,"11-12 Ipswich, Brantham",Prof & Consultancy Fees,31-Jul-21,2122/05,SME,N,
10041929,PRIVATE LANDLORD,650,Guaranteed Rent Scheme,Rent Payable,28-Jul-21,2122/05,ST,N,
10042230,QUEUE TECHNOLOGY LTD,"9,525.00",BRRP-MarketTownVision&Invest,Prof & Consultancy Fees,18-Aug-21,2122/05,SME,Y,60%
10042388,TT MAN WITH A VAN,300,Homeless Prevention Fund,Misc Supplies & Services Costs,27-Aug-21,2122/05,ST,N,
10042050,PRIVATE LANDLORD,800,Guaranteed Rent Scheme,Rent Payable,10-Aug-21,2122/05,SME,N,
10041758,ARAN INSULATION LTD,878.21,Major Imps,Improvements,23-Jul-21,2122/05,SME,N,
10042125,ARAN INSULATION LTD,"4,061.50",Insulation Imps,Improvements,11-Aug-21,2122/05,SME,N,
10042126,ARAN INSULATION LTD,656.13,Insulation Imps,Improvements,11-Aug-21,2122/05,SME,N,
10042127,ARAN INSULATION LTD,"1,054.58",Insulation Imps,Improvements,11-Aug-21,2122/05,SME,N,
10042139,ARAN INSULATION LTD,399.76,Insulation Imps,Improvements,12-Aug-21,2122/05,SME,N,
10042215,ARAN INSULATION LTD,495,Building Services,Contracted Services,17-Aug-21,2122/05,SME,N,
10041968,HM REVENUES & CUSTOMS (CIS TAX),"4,322.80",Current Liabilities,Bank Payments,05-Aug-21,2122/05,LGE,N,
10041781,DARREN MORSS T/A D & V MORSS,"7,096.38",Building Services,Repairs,27-Jul-21,2122/05,SME,N,
10042223,PRIVATE LANDLORD,550,Guaranteed Rent Scheme,Rent Payable,18-Aug-21,2122/05,ST,N,
10042237,T J WHITE PLUMBING & HEATING,"6,225.00",Mand Disabled Facilities Grant,Grants,17-Aug-21,2122/05,SME,N,
10041821,COMPASSION,"1,000.00",Grants & Contrbns,Contributions & Donations,28-Jul-21,2122/05,SME,N,
10041837,SPROUGHTON TENNIS CLUB,325,Suffolk Community Restart Fund,Contributions from other LAs,29-Jul-21,2122/05,SME,N,
10041948,PRIVATE LANDLORD,750,Guaranteed Rent Scheme,Misc Supplies & Services Costs,04-Aug-21,2122/05,SME,N,
10041922,LAYHAM PLAYGROUP CIO,469,Suffolk Community Restart Fund,Contributions from other LAs,03-Aug-21,2122/05,SME,N,
10041923,RIVERSIDE,679,Suffolk Community Restart Fund,Contributions from other LAs,03-Aug-21,2122/05,SME,N,
20027403,PRIVATE LANDLORD,550,Guaranteed Rent Scheme,Rent Payable,04-Aug-21,2122/05,ST,N,
10041926,JD PLUMBING CONTRACTS LTD,"3,040.56",Renovation/Home Repair Grants,Grants,03-Aug-21,2122/05,ST,N,
10042391,COCKFIELD UNITED FOOTBALL CLUB,"1,679.90",Suffolk Community Restart Fund,Contributions from other LAs,27-Aug-21,2122/05,SME,N,
10042390,SUDBURY NETBALL LEAGUE,365,Suffolk Community Restart Fund,Contributions from other LAs,27-Aug-21,2122/05,SME,N,
10042392,SUFFOLK OXYGEN THERAPY CENTRE,400,Suffolk Community Restart Fund,Contributions from other LAs,27-Aug-21,2122/05,SME,N,
10042393,WOODLAND CORNER CIO,"2,500.00",Suffolk Community Restart Fund,Contributions from other LAs,27-Aug-21,2122/05,SME,N,
10042119,IPSERV LTD,851.55,Central Printing,Commercial Printing,10-Aug-21,2122/05,SME,N,
10042119,IPSERV LTD,609.91,Communications,Commercial Printing,10-Aug-21,2122/05,SME,Y,50%
10042120,IPSERV LTD,236.25,Central Printing,Commercial Printing,10-Aug-21,2122/05,SME,N,
10042120,IPSERV LTD,394.94,Communications,Commercial Printing,10-Aug-21,2122/05,SME,Y,50%
10042136,SSE,361.59,Homeless Prevention Fund,Misc Supplies & Services Costs,05-Aug-21,2122/05,LGE,Y,100%
10042234,BOND TURNER,500,Building Services,Payments to Tenants,17-Aug-21,2122/05,SME,N,
10042398,SUDBURY CANOE CLUB,"2,235.00",Suffolk Community Restart Fund,Contributions from other LAs,27-Aug-21,2122/05,SME,N,
10042396,SUFFOLK BUILDING PRESERVATION TRUST LITT,650,Suffolk Community Restart Fund,Contributions from other LAs,27-Aug-21,2122/05,SME,N,
10042409,EAST BERGHOLT UNITED FOOTBALL CLUB,"2,491.74",Suffolk Community Restart Fund,Contributions from other LAs,27-Aug-21,2122/05,SME,N,
10042401,EAST BERGHOLT TENNIS CLUB,"2,500.00",Suffolk Community Restart Fund,Contributions from other LAs,27-Aug-21,2122/05,SME,N,
10042410,NOAHS ARK NURSERY GROUP,"1,900.00",Suffolk Community Restart Fund,Contributions from other LAs,27-Aug-21,2122/05,SME,N,
10042400,SHOTLEY KIDZONE,"2,174.00",Suffolk Community Restart Fund,Contributions from other LAs,27-Aug-21,2122/05,SME,N,
10042075,G4S CASH SOLUTIONS LTD,-172.8,Financial Servs,Contracted Services,30-Jul-21,2122/05,LGE,N,
10042076,G4S CASH SOLUTIONS LTD,-86.4,Financial Servs,Contracted Services,30-Jun-21,2122/05,LGE,N,
10042171,MALJON TIMBER PRESERVATION LTD,-70,Dampness & Condensation,Repairs,03-Aug-21,2122/05,SME,N,
10042376,ADVANCE SUPPLIES,-31.98,Sheltered Accommodation,Cleaning Materials,23-Aug-21,2122/05,SME,N,
10042316,NORTHERN HOUSING CONSORTIUM,-6.49,General/Supervision & Mgmt,Subscriptions,24-Aug-21,2122/05,SME,N,
218,PORTAL PLAN QUEST LTD,-116,Devt Management -Applications,Planning Fees,16-Aug-21,2122/05,SME,N,
954,HM REVENUES & CUSTOMS (CIS TAX),"-4,322.80",Current Liabilities,Construction Industry Tax,12-Aug-21,2122/05,LGE,N,
20027416,HM REVENUES & CUSTOMS (CIS TAX),"-1,347.12",Current Liabilities,Bank Payments,13-Jul-21,2122/05,LGE,N,
20027417,HM REVENUES & CUSTOMS (CIS TAX),"-1,104.68",Current Liabilities,Bank Payments,15-Jun-21,2122/05,LGE,N,
10042504,AE WHITE SURFACING,755,Sheltered Accommodation,Fire Prevention,07-Jun-21,2122/06,SME,N,
10042732,ANGLIAN WATER,631.84,Sheltered Accommodation,Water Rates - Unmetered,21-Feb-21,2122/06,LGE,N,
10042411,ARAN SERVICES LTD,452.68,Insulation Imps,Major Contracts,23-Aug-21,2122/06,SME,N,
10042440,ARLINGCLOSE LTD,282.36,Treasury Management,Contracted Services,31-Aug-21,2122/06,SME,N,
10042566,BINDER LTD,180,Sewage Treatment Works,Contracted Services,25-Aug-21,2122/06,SME,N,
10042566,BINDER LTD,123,Sewage Treatment Works,Repairs,25-Aug-21,2122/06,SME,N,
20027425,BLUE FLAME (COLCHESTER) LTD,"2,977.84",Current Liabilities,Cert IBS Creditors Holding ac,01-Sep-21,2122/06,SME,N,
20027501,BLUE FLAME (COLCHESTER) LTD,"13,874.84",Current Liabilities,Cert IBS Creditors Holding ac,08-Sep-21,2122/06,SME,N,
20027505,BLUE FLAME (COLCHESTER) LTD,"22,891.27",Current Liabilities,Cert IBS Creditors Holding ac,15-Sep-21,2122/06,SME,N,
20027574,BLUE FLAME (COLCHESTER) LTD,"28,812.47",Current Liabilities,Cert IBS Creditors Holding ac,22-Sep-21,2122/06,SME,N,
20027581,BLUE FLAME (COLCHESTER) LTD,"21,535.64",Current Liabilities,Cert IBS Creditors Holding ac,29-Sep-21,2122/06,SME,N,
10042577,BOTTOMLINE TECHNOLOGIES,667.8,ICT,Software Licnse (Line of Bus) ,31-Aug-21,2122/06,LGE,Y,50%
10042364,BOWER FULLER,798.23,Tenancy Services,Fire Prevention,28-Jul-21,2122/06,SME,N,
10042365,BOWER FULLER,600.82,Tenancy Services,Fire Prevention,02-Aug-21,2122/06,SME,N,
10042366,BOWER FULLER,"4,397.49",Rewiring,Repairs,02-Aug-21,2122/06,SME,N,
10042368,BOWER FULLER,277.2,Tenancy Services,Fire Prevention,02-Aug-21,2122/06,SME,N,
10042369,BOWER FULLER,"1,999.20",Business Cont/Emergency Plan,Fire Prevention,02-Aug-21,2122/06,SME,N,
10042370,BOWER FULLER,"1,247.46",Chilton Depot,Security Systems,02-Aug-21,2122/06,SME,Y,50%
10042371,BOWER FULLER,255.19,Sheltered Accommodation,Repairs,04-Aug-21,2122/06,SME,N,
10042372,BOWER FULLER,930.37,Sheltered Accommodation,Fire Prevention,28-Jul-21,2122/06,SME,N,
10042618,AQUASAMPLERS,485,Water Sampling,Sampling & Analysis,31-Aug-21,2122/06,SME,N,
10042579,CHEQUERS HOTEL LTD,910,Homelessness Private Sector,B&B Costs,30-Aug-21,2122/06,SME,N,
10043032,CHEQUERS HOTEL LTD,510,Homelessness Private Sector,B&B Costs,01-Mar-21,2122/06,SME,N,
10042817,CHIPSIDE LTD,400,C Parks General,Contracted Services,25-Aug-21,2122/06,SME,N,
10042274,CLARKES OF WALSHAM LTD,"1,621.40",Building Services,Repairs,20-Aug-21,2122/06,SME,N,
10042306,D W ADAMS LTD,572,Building Services,Repairs,23-Aug-21,2122/06,SME,N,
10042317,D W ADAMS LTD,"10,025.92",Council House Adaptions,Improvements,24-Aug-21,2122/06,SME,N,
10042386,D W ADAMS LTD,542,Building Services,Repairs,27-Aug-21,2122/06,SME,N,
10042443,D W ADAMS LTD,279.22,Council House Adaptions,Improvements,31-Aug-21,2122/06,SME,N,
10042480,D W ADAMS LTD,"2,698.00",Building Services,Repairs,01-Sep-21,2122/06,SME,N,
10042782,EAST OF ENGLAND LGA,"9,119.06",Management Team,Subscriptions,08-Sep-21,2122/06,SME,N,
10042449,EGBERT H.TAYLOR & CO.LTD.,"11,536.40",Bins,Bins,01-Sep-21,2122/06,SME,Y,50%
10042449,EGBERT H.TAYLOR & CO.LTD.,450,Jnt Waste Contract,"Equipment, Tools & Materials",01-Sep-21,2122/06,SME,Y,50%
10042670,ENGLISH SECURITY,"7,631.05",Sheltered Accommodation,Fire Prevention,07-Sep-21,2122/06,SME,N,
10042671,ENGLISH SECURITY,"1,224.18",Sheltered Accommodation,Fire Prevention,07-Sep-21,2122/06,SME,N,
10042426,ENVIROVENT LTD,460,Dampness & Condensation,Repairs,24-Aug-21,2122/06,SME,N,
10042427,ENVIROVENT LTD,813.08,Dampness & Condensation,Repairs,24-Aug-21,2122/06,SME,N,
10042534,ENVIROVENT LTD,564.08,Dampness & Condensation,Repairs,31-Aug-21,2122/06,SME,N,
10042787,ENVIROVENT LTD,460,Dampness & Condensation,Repairs,14-Sep-21,2122/06,SME,N,
10042788,ENVIROVENT LTD,460,Dampness & Condensation,Repairs,14-Sep-21,2122/06,SME,N,
10042789,ENVIROVENT LTD,709,Dampness & Condensation,Repairs,14-Sep-21,2122/06,SME,N,
10042836,ENVIROVENT LTD,460,Dampness & Condensation,Repairs,15-Sep-21,2122/06,SME,N,
10042361,FELLBRIDGE BUILDING SERVICES,854.95,Building Services,Repairs,26-Aug-21,2122/06,SME,N,
10042544,FELLBRIDGE BUILDING SERVICES,"4,341.98",Building Services,Repairs,02-Sep-21,2122/06,SME,N,
10042702,FELLBRIDGE BUILDING SERVICES,"6,529.31",Building Services,Repairs,13-Sep-21,2122/06,SME,N,
10042938,FELLBRIDGE BUILDING SERVICES,952.8,Building Services,Repairs,23-Sep-21,2122/06,SME,N,
10042503,FORE-MOST GARAGE DOORS LTD,"3,719.33",Building Services,Repairs,31-Aug-21,2122/06,SME,N,
10042774,GB ADAPTIONS LTD,"3,301.00",Mand Disabled Facilities Grant,Grants,10-Sep-21,2122/06,SME,N,
10042644,G4S CASH SOLUTIONS LTD,458.86,Financial Servs,Contracted Services,02-Jul-21,2122/06,LGE,N,
10042302,HAYES DIGGINS BUILDERS,"1,500.00",Assets & Development,Repairs,23-Aug-21,2122/06,SME,N,
10042414,HAYES DIGGINS BUILDERS,475,Kingfisher Leisure Centre,Repairs,26-May-21,2122/06,SME,N,
10042595,HAYES DIGGINS BUILDERS,"16,895.00",Assets & Development,Repairs,06-Sep-21,2122/06,SME,N,
10042487,JMP SERVICES LTD,485,Environmental Protection,Contracted Services,31-Aug-21,2122/06,SME,N,
10042487,JMP SERVICES LTD,165,Abandoned Vehicles,"Collection,Disp & Enf",31-Aug-21,2122/06,SME,N,
10042838,JMP SERVICES LTD,575,Street & Major Road Cleansing,Contracted Services,17-Sep-21,2122/06,SME,N,
10042557,KEN GRIME & SON LTD,"1,049.42",Building Services,Repairs,03-Sep-21,2122/06,SME,N,
10042648,KENDA-CLEAN,27,Chilton Depot,Window Cleaning,06-Sep-21,2122/06,SME,Y,50%
10042648,KENDA-CLEAN,43,Old School House,Window Cleaning,06-Sep-21,2122/06,SME,N,
10042648,KENDA-CLEAN,"1,217.00",Sheltered Accommodation,Window Cleaning,06-Sep-21,2122/06,SME,N,
10042648,KENDA-CLEAN,80,Temporary Accommodation,Window Cleaning,06-Sep-21,2122/06,SME,N,
10042648,KENDA-CLEAN,771,Tenancy Services,Window Cleaning,06-Sep-21,2122/06,SME,N,
10042554,KEYWAYS THE LOCKSMITHS LTD,300,Sheltered Accommodation,Misc Premises Costs,03-Sep-21,2122/06,SME,N,
10042676,KEYWAYS THE LOCKSMITHS LTD,"3,919.00",Sheltered Accommodation,Repairs,10-Sep-21,2122/06,SME,N,
10042755,KEYWAYS THE LOCKSMITHS LTD,496.15,Building Services,Repairs,14-Sep-21,2122/06,SME,N,
10042594,M & H CIVIL ENGINEERING LTD,930.2,Building Services,Repairs,06-Sep-21,2122/06,SME,N,
10042703,M & H CIVIL ENGINEERING LTD,450,Building Services,Repairs,13-Sep-21,2122/06,SME,N,
10042555,MARTIN BROKERS ( UK ) PLC,"1,512.33",Treasury Management,Prof & Consultancy Fees,31-Aug-21,2122/06,LGE,N,
10042736,MATERIAL CHANGE COMPOSTING LTD,291.7,Open Spaces,Waste Disposal,31-Aug-21,2122/06,LGE,N,
10042664,MERCURY BUILDING SERVICES LTD,808.6,Hadleigh Pool,Repairs,07-Sep-21,2122/06,SME,N,
10042664,MERCURY BUILDING SERVICES LTD,748.8,Kingfisher Leisure Centre,Repairs,07-Sep-21,2122/06,SME,N,
10042664,MERCURY BUILDING SERVICES LTD,783.85,Kingfisher Leisure Centre,Repairs,07-Sep-21,2122/06,SME,N,
10042857,MONTHIND CLEAN LTD,624.43,Jnt Waste Contract,General Cleaning,15-Sep-21,2122/06,LGE,Y,50%
10042689,NEEDHAM MARKET AERIALS LTD,400,Tenancy Services,Repairs,12-Sep-21,2122/06,SME,N,
10042765,NEEDHAM MARKET AERIALS LTD,415,Tenancy Services,Repairs,14-Sep-21,2122/06,SME,N,
10042718,ORWELL HOUSING ASSOCIATION LTD,545.52,Sheltered Accommodation,Contracted Services,30-Jul-21,2122/06,LGE,N,
10042719,ORWELL HOUSING ASSOCIATION LTD,545.52,Sheltered Accommodation,Contracted Services,30-Jul-21,2122/06,LGE,N,
10042721,ORWELL HOUSING ASSOCIATION LTD,293.58,Sheltered Accommodation,Contracted Services,25-Jun-21,2122/06,LGE,N,
10042816,ORWELL HOUSING ASSOCIATION LTD,"4,375.00",Other Temp Accommodation,Contracted Services,16-Sep-21,2122/06,LGE,N,
10042434,PITMAN BROTHERS (DECORATORS) LTD,"1,380.00",Building Services,Repairs,27-Aug-21,2122/06,SME,N,
10042549,PITMAN BROTHERS (DECORATORS) LTD,"2,350.00",Building Services,Repairs,18-Aug-21,2122/06,SME,N,
10042668,PLASUFIX LTD,"11,413.49",Roofing,Major Contracts,31-Aug-21,2122/06,SME,N,
10042622,PRO-FLAT SPECIALIST SERVICES LTD,"1,727.00",Building Services,Repairs,07-Sep-21,2122/06,SME,N,
10042324,REID PLUMBING & HEATING CONTRACTORS LTD,"9,773.32",Central Heating,Major Contracts,25-Aug-21,2122/06,SME,N,
10042359,REID PLUMBING & HEATING CONTRACTORS LTD,"4,810.22",Central Heating,Major Contracts,26-Aug-21,2122/06,SME,N,
10042465,REID PLUMBING & HEATING CONTRACTORS LTD,"19,110.00",Central Heating,Major Contracts,01-Sep-21,2122/06,SME,N,
10042529,REID PLUMBING & HEATING CONTRACTORS LTD,"18,676.11",Central Heating,Major Contracts,01-Sep-21,2122/06,SME,N,
10042630,REID PLUMBING & HEATING CONTRACTORS LTD,"8,855.15",Central Heating,Major Contracts,08-Sep-21,2122/06,SME,N,
10042753,REID PLUMBING & HEATING CONTRACTORS LTD,"14,254.82",Central Heating,Major Contracts,14-Sep-21,2122/06,SME,N,
10042766,REID PLUMBING & HEATING CONTRACTORS LTD,"8,848.23",Central Heating,Major Contracts,10-Sep-21,2122/06,SME,N,
10042896,REID PLUMBING & HEATING CONTRACTORS LTD,"13,437.75",Central Heating,Major Contracts,22-Sep-21,2122/06,SME,N,
10042908,RICOH UK LTD,"1,042.90",ICT,Photocopying,05-Aug-21,2122/06,LGE,Y,50%
10042235,SHELTON DEVELOPMENT SEVICES LTD,"1,202.01",ICT,Desktop Software,02-Aug-21,2122/06,SME,Y,50%
10042775,SEAGER HOME SOLUTIONS,"6,056.35",Mand Disabled Facilities Grant,Grants,13-Sep-21,2122/06,SME,N,
10042629,SITEIMPROVE LTD,"1,166.51",ICT,Software Licnse (Line of Bus) ,08-Sep-21,2122/06,SME,Y,50%
10042864,SOLACE GROUP LTD,350,Management Team,Conference Expenses,17-Sep-21,2122/06,SME,Y,50%
10042792,SSI SCHAEFER LTD,"14,341.80",Bins,Bins,16-Sep-21,2122/06,SME,N,
10042889,SSI SCHAEFER LTD,"28,530.00",Bins,Bins,21-Sep-21,2122/06,SME,Y,77%
10042950,SUDBURY OFFICE SUPPLIES,122.74,Governance,Stationery,21-Sep-21,2122/06,SME,Y,50%
10042950,SUDBURY OFFICE SUPPLIES,214.29,Central Stationery & equip,Stationery,21-Sep-21,2122/06,SME,N,
10042561,SUREFIX,"1,100.00",Building Services,Repairs,01-Sep-21,2122/06,SME,N,
10042825,SUREFIX,750,Building Services,Repairs,16-Sep-21,2122/06,SME,N,
10042827,SUREFIX,349.07,Building Services,Repairs,13-Sep-21,2122/06,SME,N,
10042828,SUREFIX,260,Building Services,Repairs,13-Sep-21,2122/06,SME,N,
10042829,SUREFIX,283.48,Building Services,Repairs,08-Sep-21,2122/06,SME,N,
10042831,SUREFIX,260,Building Services,Repairs,06-Sep-21,2122/06,SME,N,
10042832,SUREFIX,435.12,Building Services,Repairs,06-Sep-21,2122/06,SME,N,
10042958,SUREFIX,850,Building Services,Repairs,24-Sep-21,2122/06,SME,N,
10042959,SUREFIX,850,Building Services,Repairs,20-Sep-21,2122/06,SME,N,
10042992,SUREFIX,"4,280.00",Renovation/Home Repair Grants,Grants,27-Sep-21,2122/06,SME,N,
10042416,TANKCHANGE LTD,"2,095.00",Central Heating,Improvements,16-Aug-21,2122/06,SME,N,
10042418,TANKCHANGE LTD,385,Central Heating,Improvements,29-Jul-21,2122/06,SME,N,
10042419,TANKCHANGE LTD,"2,295.00",Central Heating,Improvements,16-Aug-21,2122/06,SME,N,
10042309,THERMATECH,"3,600.00",Sheltered Accommodation,Fire Prevention,23-Aug-21,2122/06,SME,N,
10042310,THERMATECH,475,Tenancy Services,Fire Prevention,23-Aug-21,2122/06,SME,N,
10042678,THERMATECH,275,Voids Maintenance,Fire Prevention,09-Sep-21,2122/06,SME,N,
10042454,TREADFIRST TYRE & EXHAUST LIMITED,300,Taxi & Private Hire Licensing,Contracted Services,31-Aug-21,2122/06,SME,N,
10042925,WORKWEAR (EAST ANGLIA) LTD,"2,924.25",Public Realm TransitionProject,Plant & Vehicle - Other costs,17-Aug-21,2122/06,SME,N,
10042502,ARCHANT COMMUNITY MEDIA LTD,577.83,Devt Management -Applications,Advertising&mkting (non-staff),21-Aug-21,2122/06,LGE,N,
10042558,ARCHANT COMMUNITY MEDIA LTD,735.42,Devt Management -Applications,Advertising&mkting (non-staff),31-Aug-21,2122/06,LGE,N,
10042659,ARCHANT COMMUNITY MEDIA LTD,446.51,Devt Management -Applications,Advertising&mkting (non-staff),31-Aug-21,2122/06,LGE,N,
10042660,ARCHANT COMMUNITY MEDIA LTD,591.67,Civil Parking Enforcement,Advertising&mkting (non-staff),31-Aug-21,2122/06,LGE,N,
10042877,ARCHANT COMMUNITY MEDIA LTD,446.51,Devt Management -Applications,Advertising&mkting (non-staff),18-Sep-21,2122/06,LGE,N,
10041409,ESSEX COUNTY COUNCIL,"1,074.00",Conservation,Prof & Consultancy Fees,05-Jul-21,2122/06,LGE,N,
10041543,ESSEX COUNTY COUNCIL,"5,532.25",Devt Management -Applications,Ecology Consultancy,02-Jul-21,2122/06,LGE,N,
10042930,ESSEX COUNTY COUNCIL,984,Pre App Charging,Landscape Consultancy,23-Sep-21,2122/06,LGE,N,
10042931,ESSEX COUNTY COUNCIL,"6,054.35",Devt Management -Applications,Landscape Consultancy,23-Sep-21,2122/06,LGE,N,
10042661,IDOX SOFTWARE LTD,"17,203.23",ICT,Software Licnse (Line of Bus) ,08-Sep-21,2122/06,SME,Y,50%
10042381,NPS PROPERTY CONSULTANTS LTD,"1,992.00",Environmental Imps,Prof & Consultancy Fees,27-Aug-21,2122/06,LGE,N,
10042572,IPSWICH BOROUGH COUNCIL,675.32,Central Printing,Commercial Printing,01-Sep-21,2122/06,LGE,N,
10042572,IPSWICH BOROUGH COUNCIL,271.94,Communications,Commercial Printing,01-Sep-21,2122/06,LGE,N,
10042590,IPSWICH BOROUGH COUNCIL,"17,186.00",COVID Housing Fund,Misc Supplies & Services Costs,03-Sep-21,2122/06,LGE,N,
20027511,EDF ENERGY,75.01,Belle Vue House,Electricity,16-Sep-21,2122/06,LGE,N,
20027511,EDF ENERGY,917.42,C Parks General,Electricity,16-Sep-21,2122/06,LGE,N,
20027511,EDF ENERGY,2.7,Calais St Depot,Electricity,16-Sep-21,2122/06,LGE,N,
20027511,EDF ENERGY,417.6,Chilton Depot,Electricity,16-Sep-21,2122/06,LGE,Y,50%
20027511,EDF ENERGY,380.41,Climate Change and Sustainabil,Electricity,16-Sep-21,2122/06,LGE,N,
20027511,EDF ENERGY,86.87,Community Safety-CCTV,Electricity,16-Sep-21,2122/06,LGE,N,
20027511,EDF ENERGY,11.97,Hadl Market,Electricity,16-Sep-21,2122/06,LGE,N,
20027511,EDF ENERGY,10.78,Headquarters General,Electricity,16-Sep-21,2122/06,LGE,N,
20027511,EDF ENERGY,600.2,HQ Energy,Electricity,16-Sep-21,2122/06,LGE,N,
20027511,EDF ENERGY,35.33,Old School House,Electricity,16-Sep-21,2122/06,LGE,N,
20027511,EDF ENERGY,241.64,Public Conveniences,Electricity,16-Sep-21,2122/06,LGE,N,
20027511,EDF ENERGY,91.98,Sewage Treatment Works,Electricity,16-Sep-21,2122/06,LGE,N,
20027511,EDF ENERGY,"7,640.49",Sheltered Accommodation,Electricity,16-Sep-21,2122/06,LGE,N,
20027511,EDF ENERGY,137.11,SP Comm Alarms (Non-SH),Electricity,16-Sep-21,2122/06,LGE,N,
20027511,EDF ENERGY,203.7,Temporary Accommodation,Electricity,16-Sep-21,2122/06,LGE,N,
20027511,EDF ENERGY,"3,053.04",Tenancy Services,Electricity,16-Sep-21,2122/06,LGE,Y,0.01%
20027511,EDF ENERGY,6.04,Wenham Depot,Electricity,16-Sep-21,2122/06,LGE,Y,50%
20027512,EDF ENERGY,"37,454.39",Kingfisher Leisure Centre,Electricity,17-Sep-21,2122/06,LGE,N,
20027512,EDF ENERGY,"21,151.16",Hadleigh Pool,Electricity,17-Sep-21,2122/06,LGE,N,
20027573,GPC BARCLAYS,"2,568.18",Current Assets,Barclaycard Control,16-Sep-21,2122/06,LGE,Y,29%
10042996,STANNAH STAIRLIFTS LTD,"1,701.00",Mand Disabled Facilities Grant,Grants,27-Sep-21,2122/06,LGE,N,
20027429,COMPUTERSHARE ,819,Current Assets,ChildCare Vouchers-Control,27-Aug-21,2122/06,LGE,N,
20027575,COMPUTERSHARE ,859,Current Assets,ChildCare Vouchers-Control,27-Sep-21,2122/06,LGE,N,
20027515,1ST BURES SCOUT GROUP,809.18,Bring Sites,Contributions & Donations,21-Sep-21,2122/06,SME,N,
20027520,BENTLEY VILLAGE HALL,313.96,Bring Sites,Contributions & Donations,21-Sep-21,2122/06,SME,N,
20027525,CAPEL ST MARY PARISH COUNCIL,808.18,Bring Sites,Contributions & Donations,21-Sep-21,2122/06,SME,N,
20027527,CHELMONDISTON PARISH COUNCIL,614.92,Bring Sites,Contributions & Donations,21-Sep-21,2122/06,SME,N,
10042777,EAST BERGHOLT PARISH COUNCIL,"2,600.00",Comm Devt Grants,Grants,14-Sep-21,2122/06,SME,N,
20027536,ELMSETT PRIMARY SCHOOL RECYCLING CENTRE,427.31,Bring Sites,Contributions & Donations,21-Sep-21,2122/06,SME,N,
20027538,GREAT CORNARD PARISH COUNCIL,492.02,Bring Sites,Contributions & Donations,21-Sep-21,2122/06,SME,N,
20027539,GREAT WALDINGFIELD BOWLS & SOCIAL CLUB,372.75,Bring Sites,Contributions & Donations,21-Sep-21,2122/06,SME,N,
20027541,HINTLESHAM & CHATTISHAM COMMUNITY COUNCI,361.57,Bring Sites,Contributions & Donations,21-Sep-21,2122/06,SME,N,
20027542,HITCHAM VILLAGE HALL,264.3,Bring Sites,Contributions & Donations,21-Sep-21,2122/06,SME,N,
10042776,KERSEY PARISH COUNCIL,"2,293.33",Comm Devt Grants,Grants,14-Sep-21,2122/06,SME,N,
10042584,LAVENHAM PARISH COUNCIL,"4,345.00",Sheltered Units-Gen.Imp,Improvements,09-Jul-21,2122/06,SME,N,
10042779,LAVENHAM PARISH COUNCIL,"12,000.00",CIL Funded REFCUS,Grants,14-Sep-21,2122/06,SME,N,
10042780,LAVENHAM PARISH COUNCIL,"6,750.00",CIL Funded REFCUS,Grants,14-Sep-21,2122/06,SME,N,
20027546,LAWSHALL PARISH COUNCIL,303.86,Bring Sites,Contributions & Donations,21-Sep-21,2122/06,SME,N,
20027548,LEAVENHEATH VILLAGE HALL,479.85,Bring Sites,Contributions & Donations,21-Sep-21,2122/06,SME,N,
20027550,LONG MELFORD PARISH COUNCIL,439.24,Bring Sites,Contributions & Donations,21-Sep-21,2122/06,SME,N,
20027551,NEWTON PARISH COUNCIL,370.64,Bring Sites,Contributions & Donations,21-Sep-21,2122/06,SME,N,
20027564,STUTTON PARISH COUNCIL,270.81,Bring Sites,Contributions & Donations,21-Sep-21,2122/06,SME,N,
20027565,SUDBURY TOWN COUNCIL,"1,174.62",Bring Sites,Contributions & Donations,21-Sep-21,2122/06,SME,N,
20027570,TEENAGE CANCER TRUST,337.28,Bring Sites,Contributions & Donations,21-Sep-21,2122/06,LGE,N,
10041719,SUFFOLK COUNTY COUNCIL,"2,540.00",Pre App Charging,Highways  Consultancy,21-Jul-21,2122/06,LGE,N,
10041720,SUFFOLK COUNTY COUNCIL,"1,785.00",Pre App Charging,Prof & Consultancy Fees,21-Jul-21,2122/06,LGE,N,
10042191,SUFFOLK COUNTY COUNCIL,"2,221.79",ICT,Contracted Services,13-Aug-21,2122/06,LGE,Y,50%
10042484,SUFFOLK COUNTY COUNCIL,274.56,ICT,Desktop Software,31-Aug-21,2122/06,LGE,Y,50%
10042486,SUFFOLK COUNTY COUNCIL,"167,892.50",ICT,Major Contracts,01-Sep-21,2122/06,LGE,Y,50%
10042631,SUFFOLK COUNTY COUNCIL,"20,439.20",Domestic Waste,MRF Disposal,07-Sep-21,2122/06,LGE,N,
10042631,SUFFOLK COUNTY COUNCIL,"20,767.83",Garden Waste,Garden Waste Disposal,07-Sep-21,2122/06,LGE,N,
10042778,SUFFOLK COUNTY COUNCIL,"1,450.29",RAMS,Contributions to other Bodies,14-Sep-21,2122/06,LGE,N,
10042822,SUFFOLK COUNTY COUNCIL,"7,500.00",Womens Cycle Tour,"Equipment, Tools & Materials",16-Sep-21,2122/06,LGE,Y,50%
10042869,SUFFOLK COUNTY COUNCIL,"1,515.00",Land Chgs,Contracted Services,20-Sep-21,2122/06,LGE,N,
10042428,REED SPECIALIST RECRUITMENT LTD,688.69,Governance,Agency Staff,20-Aug-21,2122/06,LGE,Y,50%
10042429,REED SPECIALIST RECRUITMENT LTD,869.33,Governance,Agency Staff,20-Aug-21,2122/06,LGE,Y,50%
10042431,REED SPECIALIST RECRUITMENT LTD,835.46,Governance,Agency Staff,20-Aug-21,2122/06,LGE,Y,50%
10042704,REED SPECIALIST RECRUITMENT LTD,688.69,Governance,Agency Staff,03-Sep-21,2122/06,LGE,Y,50%
10042705,REED SPECIALIST RECRUITMENT LTD,677.4,Governance,Agency Staff,03-Sep-21,2122/06,LGE,Y,50%
10042706,REED SPECIALIST RECRUITMENT LTD,677.4,Governance,Agency Staff,27-Aug-21,2122/06,LGE,Y,50%
10042707,REED SPECIALIST RECRUITMENT LTD,688.69,Governance,Agency Staff,27-Aug-21,2122/06,LGE,Y,50%
10042714,REED SPECIALIST RECRUITMENT LTD,899.36,Governance,Agency Staff,27-Aug-21,2122/06,LGE,Y,50%
10042861,REED SPECIALIST RECRUITMENT LTD,884.46,Governance,Agency Staff,10-Sep-21,2122/06,LGE,Y,50%
10042862,REED SPECIALIST RECRUITMENT LTD,835.46,Governance,Agency Staff,10-Sep-21,2122/06,LGE,Y,50%
10042863,REED SPECIALIST RECRUITMENT LTD,835.46,Governance,Agency Staff,10-Sep-21,2122/06,LGE,Y,50%
10042933,REED SPECIALIST RECRUITMENT LTD,649.81,Financial Servs,Agency Staff,10-Sep-21,2122/06,LGE,Y,50%
10042981,REED SPECIALIST RECRUITMENT LTD,861.88,Governance,Agency Staff,17-Sep-21,2122/06,LGE,Y,50%
10042983,REED SPECIALIST RECRUITMENT LTD,846.75,Governance,Agency Staff,17-Sep-21,2122/06,LGE,Y,50%
10042984,REED SPECIALIST RECRUITMENT LTD,835.46,Governance,Agency Staff,17-Sep-21,2122/06,LGE,Y,50%
10042968,TELEFONICA UK LIMITED - O2,373.25,ICT,Telephone Costs,27-Sep-21,2122/06,LGE,Y,50%
10042940,AUTO INNOVATIONS LTD,360,Jnt Waste Contract,"Equipment, Tools & Materials",01-Sep-21,2122/06,SME,Y,50%
10042737,LEX AUTOLEASE,"3,351.36",Building Services,Lease Cars - Payment,01-Sep-21,2122/06,SME,Y,50%
10042738,LEX AUTOLEASE,"4,612.20",Building Services,Lease Cars - Payment,01-Sep-21,2122/06,SME,Y,50%
10042739,LEX AUTOLEASE,"4,019.03",Building Services,Lease Cars - Payment,01-Sep-21,2122/06,SME,Y,50%
10042740,LEX AUTOLEASE,"3,370.92",Building Services,Lease Cars - Payment,01-Sep-21,2122/06,SME,Y,50%
10042741,LEX AUTOLEASE,"3,153.48",Building Services,Lease Cars - Payment,01-Sep-21,2122/06,SME,Y,50%
10042742,LEX AUTOLEASE,"2,859.84",Building Services,Lease Cars - Payment,01-Sep-21,2122/06,SME,Y,50%
10042743,LEX AUTOLEASE,"4,550.04",Building Services,Lease Cars - Payment,01-Sep-21,2122/06,SME,Y,50%
10042744,LEX AUTOLEASE,"3,062.51",Building Services,Lease Cars - Payment,01-Sep-21,2122/06,SME,Y,50%
10042745,LEX AUTOLEASE,"2,929.96",Building Services,Lease Cars - Payment,01-Sep-21,2122/06,SME,Y,50%
10042746,LEX AUTOLEASE,"2,748.48",Building Services,Lease Cars - Payment,01-Sep-21,2122/06,SME,Y,50%
10042747,LEX AUTOLEASE,"3,171.85",Building Services,Lease Cars - Payment,01-Sep-21,2122/06,SME,Y,50%
10042748,LEX AUTOLEASE,"3,001.08",Building Services,Lease Cars - Payment,01-Sep-21,2122/06,SME,Y,50%
10042749,LEX AUTOLEASE,"3,573.60",Building Services,Lease Cars - Payment,01-Sep-21,2122/06,SME,Y,50%
10042750,LEX AUTOLEASE,"3,261.60",Building Services,Lease Cars - Payment,01-Sep-21,2122/06,SME,Y,50%
10042751,LEX AUTOLEASE,"1,824.30",Building Services,Lease Cars - Payment,01-Sep-21,2122/06,SME,Y,50%
10042834,LEX AUTOLEASE,"1,834.05",Building Services,Lease Cars - Payment,08-Sep-21,2122/06,SME,Y,50%
10042639,LANDMARK CHAMBERS,825,Devt Management -Applications,Legal ex App proj&pre-decn adv,11-Aug-21,2122/06,SME,N,
10042942,GAZPROM ENERGY,64.91,Belle Vue House,Gas,22-Sep-21,2122/06,SME,N,
10042942,GAZPROM ENERGY,"2,053.13",Hadleigh Pool,Gas,22-Sep-21,2122/06,SME,N,
10042942,GAZPROM ENERGY,37.18,HQ Energy,Gas,22-Sep-21,2122/06,SME,N,
10042942,GAZPROM ENERGY,"4,324.97",Kingfisher Leisure Centre,Gas,22-Sep-21,2122/06,SME,N,
10042942,GAZPROM ENERGY,"1,834.96",Sheltered Accommodation,Gas,22-Sep-21,2122/06,SME,N,
10042942,GAZPROM ENERGY,115.73,Temporary Accommodation,Gas,22-Sep-21,2122/06,SME,N,
20027533,EAST BERGHOLT HIGH SCHOOL,379.96,Bring Sites,Contributions & Donations,21-Sep-21,2122/06,SME,N,
10042894,THE HOUSING OMBUDSMAN,"7,653.15",Capita System Support,Subscriptions,01-Jun-21,2122/06,LGE,N,
10042208,WHYBROW PROPERTY SOLUTIONS LTD,"11,180.06",Building Services,Repairs,16-Aug-21,2122/06,SME,N,
10042352,WHYBROW PROPERTY SOLUTIONS LTD,"10,000.00",Building Services,Repairs,25-Aug-21,2122/06,SME,N,
10042575,WHYBROW PROPERTY SOLUTIONS LTD,"1,474.74",Building Services,Repairs,03-Sep-21,2122/06,SME,N,
10042756,WHYBROW PROPERTY SOLUTIONS LTD,"1,193.00",Window & Door Rplcmts,Improvements,10-Sep-21,2122/06,SME,N,
10042762,WHYBROW PROPERTY SOLUTIONS LTD,"5,608.33",Building Services,Repairs,10-Sep-21,2122/06,SME,N,
10042763,WHYBROW PROPERTY SOLUTIONS LTD,537,Building Services,Repairs,13-Sep-21,2122/06,SME,N,
10042783,WHYBROW PROPERTY SOLUTIONS LTD,"2,109.05",Building Services,Repairs,16-Sep-21,2122/06,SME,N,
10042941,WHYBROW PROPERTY SOLUTIONS LTD,"1,649.00",Building Services,Repairs,22-Sep-21,2122/06,SME,N,
10042943,WHYBROW PROPERTY SOLUTIONS LTD,"1,535.00",Building Services,Repairs,22-Sep-21,2122/06,SME,N,
10042334,L A C CLEANING CONTRACTORS LIMITED,633.33,Sheltered Accommodation,General Cleaning,24-Aug-21,2122/06,SME,N,
10042383,L A C CLEANING CONTRACTORS LIMITED,710.48,Wenham Depot TDP,General Cleaning,24-Aug-21,2122/06,SME,Y,50%
10042589,L A C CLEANING CONTRACTORS LIMITED,710.23,Building Services,Repairs,06-Sep-21,2122/06,SME,N,
10042592,L A C CLEANING CONTRACTORS LIMITED,452.5,Building Services,Repairs,06-Sep-21,2122/06,SME,N,
10042802,L A C CLEANING CONTRACTORS LIMITED,475.5,Other Temp Accommodation,General Cleaning,16-Sep-21,2122/06,SME,N,
10042803,L A C CLEANING CONTRACTORS LIMITED,495.5,Building Services,Repairs,16-Sep-21,2122/06,SME,N,
10042868,L A C CLEANING CONTRACTORS LIMITED,495.5,Building Services,Repairs,20-Sep-21,2122/06,SME,N,
10042882,L A C CLEANING CONTRACTORS LIMITED,670.25,Building Services,Repairs,21-Sep-21,2122/06,SME,N,
10042955,L A C CLEANING CONTRACTORS LIMITED,"1,088.50",Building Services,Repairs,24-Sep-21,2122/06,SME,N,
10043041,L A C CLEANING CONTRACTORS LIMITED,633.33,Sheltered Accommodation,General Cleaning,24-Sep-21,2122/06,SME,N,
10042885,ARMSTRONG YORK ASBESTOS ENVIRONMENTAL,"8,979.06",Asbestos Survey & Reinspection,Prof & Consultancy Fees,31-Aug-21,2122/06,SME,N,
10042570,PLANNING JUNGLE LTD,300,Devt Management -Applications,Books & Periodicals,03-Sep-21,2122/06,SME,Y,55%
10041831,CADCORP,"2,700.00",Addl Projects,Computer Equpt Purchases,29-Jul-21,2122/06,SME,Y,49%
10042506,CADCORP,"2,814.48",Addl Projects,Computer Equpt Purchases,31-Aug-21,2122/06,SME,Y,51%
10042506,CADCORP,"4,385.52",ICT,Software Licences (Corporate) ,31-Aug-21,2122/06,SME,Y,48%
10042415,THE MIX STOWMARKET LTD,"7,326.66",Community Safety-General,Contributions & Donations,17-Aug-21,2122/06,SME,N,
10042523,TRADITION (UK) LTD,"5,052.06",Treasury Management,Prof & Consultancy Fees,31-Aug-21,2122/06,LGE,N,
10042603,STOWE VETERINARY GROUP,303.81,Animal Welfare Licensing,Prof & Consultancy Fees,10-Aug-21,2122/06,SME,N,
10042604,STOWE VETERINARY GROUP,285.49,Animal Welfare Licensing,Prof & Consultancy Fees,10-Aug-21,2122/06,SME,N,
10042608,STOWE VETERINARY GROUP,303.81,Animal Welfare Licensing,Prof & Consultancy Fees,10-Aug-21,2122/06,SME,N,
10043004,STOWE VETERINARY GROUP,293.99,Animal Welfare Licensing,Prof & Consultancy Fees,23-Sep-21,2122/06,SME,N,
20027559,ST HELENA HOSPICE,437.58,Bring Sites,Contributions & Donations,21-Sep-21,2122/06,SME,N,
10042663,CHILDCARE VOUCHER LTD EDENRED (UK GROUP),554.75,Health & Safety,"Equipment, Tools & Materials",13-Sep-21,2122/06,SME,N,
20027566,SUFFOLK COMMUNITY FOUNDATION,331.5,Bring Sites,Contributions & Donations,21-Sep-21,2122/06,SME,N,
10042573,CAPITA SECURE INFORMATION SOLUTIONS LTD,"54,294.50",ICT - Finance System,Contracted Services,24-Aug-21,2122/06,SME,Y,50%
10042611,ORSIS UK LTD,"6,412.50",PV Panels,Contracted Services,06-Sep-21,2122/06,SME,N,
10042821,OPUS PEOPLE SOLUTIONS LTD,856.82,Current Liabilities,Agency Staff Holding A/C,16-Sep-21,2122/06,SME,N,
10042985,OPUS PEOPLE SOLUTIONS LTD,798.71,Current Liabilities,Agency Staff Holding A/C,23-Sep-21,2122/06,SME,N,
10042619,CORNERSTONE BARRISTERS,"65,125.00",Devt Policy & Local Plans,Misc Legal Expenses,23-Aug-21,2122/06,SME,Y,50%
10042760,CORNERSTONE BARRISTERS,"1,050.00",Devt Management -Applications,Legal Expenses,29-Jul-21,2122/06,SME,N,
10042928,THE OLDE BULL HOTEL,315,Homelessness Private Sector,B&B Costs,02-Aug-21,2122/06,SME,N,
10042407,VERTAS GROUP LTD,"7,493.79",Central Postal Serv,Postage,27-Aug-21,2122/06,SME,Y,50%
10042641,VERTAS GROUP LTD,"11,059.20",Unapportionable Central OHs,Security Systems,31-Aug-21,2122/06,SME,N,
10042764,VERTAS GROUP LTD,"10,713.60",Unapportionable Central OHs,Security Systems,30-Jul-21,2122/06,SME,N,
10042865,VERTAS GROUP LTD,"6,000.00",Central Postal Serv,Postage,14-Sep-21,2122/06,SME,Y,50%
10042303,COLLINS SKIP HIRE,541.66,Building Services,Waste Disposal,23-Aug-21,2122/06,SME,Y,50%
10042433,COLLINS SKIP HIRE,541.66,Building Services,Waste Disposal,31-Aug-21,2122/06,SME,Y,50%
10042614,COLLINS SKIP HIRE,541.66,Building Services,Waste Disposal,06-Sep-21,2122/06,SME,Y,50%
10042692,COLLINS SKIP HIRE,270.83,Building Services,Waste Disposal,13-Sep-21,2122/06,SME,Y,50%
10042866,COLLINS SKIP HIRE,541.66,Building Services,Waste Disposal,20-Sep-21,2122/06,SME,Y,50%
10042897,POSTURITE LTD,538.96,Health & Safety,Furniture,21-Sep-21,2122/06,SME,Y,50%
10042380,"DUNCAN, CAMERON AND HUTCHINSON LTD","105,450.00","1-3 Queensland, Shotley",Major Contracts,26-Aug-21,2122/06,SME,N,
10042675,"DUNCAN, CAMERON AND HUTCHINSON LTD","65,550.00","11-12 Ipswich, Brantham",Major Contracts,26-Aug-21,2122/06,SME,N,
10042976,"DUNCAN, CAMERON AND HUTCHINSON LTD","73,150.00","11-12 Ipswich, Brantham",Major Contracts,24-Sep-21,2122/06,SME,N,
10042977,"DUNCAN, CAMERON AND HUTCHINSON LTD","99,750.00","1-3 Queensland, Shotley",Major Contracts,24-Sep-21,2122/06,SME,N,
10042513,INGLETON  WOOD LLP,"5,000.00",The Lees Rough Sleepers,Prof & Consultancy Fees,30-Jul-21,2122/06,LGE,N,
10043029,BROWNE JACOBSON LLP,"2,856.00",GF - Misc Capital Receipts,Prof & Consultancy Fees,15-Sep-21,2122/06,SME,N,
10042947,SUFFOLK MARKET EVENTS,416.56,RHSSF,"Equipment, Tools & Materials",24-Sep-21,2122/06,SME,Y,50%
10042947,SUFFOLK MARKET EVENTS,416.74,Innovate Local SIGIF,Misc Supplies & Services Costs,24-Sep-21,2122/06,SME,Y,50%
10042947,SUFFOLK MARKET EVENTS,166.7,BRRP-MarketTownVision&Invest,Prof & Consultancy Fees,24-Sep-21,2122/06,SME,Y,50%
10042358,ADVANCE SUPPLIES,487.81,Sheltered Accommodation,Cleaning Materials,25-Aug-21,2122/06,SME,N,
10042898,PRESTON ST MARY VILLAGE HALL COMMITTEE,"24,898.21",CIL Funded REFCUS,Grants,21-Sep-21,2122/06,SME,N,
10042375,OXFORD BROOKES ENTERPRISES LTD,"7,892.00",Devt Management -Applications,Prof & Consultancy Fees,28-Jun-21,2122/06,SME,N,
10042810,IDVERDE LIMITED,"14,117.16",Amenity Areas,Grds Maint Contract,14-Sep-21,2122/06,SME,N,
10042810,IDVERDE LIMITED,315.45,C Parks General,Grds Maint Contract,14-Sep-21,2122/06,SME,N,
10042810,IDVERDE LIMITED,60.3,Chilton Depot,Grds Maint Contract,14-Sep-21,2122/06,SME,Y,50%
10042810,IDVERDE LIMITED,411.58,Hadl C Parks,Grds Maint Contract,14-Sep-21,2122/06,SME,N,
10042810,IDVERDE LIMITED,4.37,Hadl Market,Grds Maint Contract,14-Sep-21,2122/06,SME,N,
10042810,IDVERDE LIMITED,83.88,Industrial Estates,Grds Maint Contract,14-Sep-21,2122/06,SME,N,
10042810,IDVERDE LIMITED,177.39,Kingfisher Leisure Centre,Grds Maint Contract,14-Sep-21,2122/06,SME,N,
10042810,IDVERDE LIMITED,141.55,Nyld & Sprtn Clsd Burial Grds,Grds Maint Contract,14-Sep-21,2122/06,SME,N,
10042810,IDVERDE LIMITED,"30,076.15",Open Spaces,Grds Maint Contract,14-Sep-21,2122/06,SME,N,
10042810,IDVERDE LIMITED,22.72,Pin Mill C Park,Grds Maint Contract,14-Sep-21,2122/06,SME,N,
10042810,IDVERDE LIMITED,"3,303.05",Public Conveniences,Grds Maint Contract,14-Sep-21,2122/06,SME,N,
10042810,IDVERDE LIMITED,18.24,Sewage Treatment Works,Grds Maint Contract,14-Sep-21,2122/06,SME,N,
10042810,IDVERDE LIMITED,766.63,Sheltered Accommodation,Grds Maint Contract,14-Sep-21,2122/06,SME,N,
10042810,IDVERDE LIMITED,"37,074.48",Street & Major Road Cleansing,Grds Maint Contract,14-Sep-21,2122/06,SME,N,
10042810,IDVERDE LIMITED,809.16,Sudb C Parks,Grds Maint Contract,14-Sep-21,2122/06,SME,N,
10042811,IDVERDE LIMITED,516.4,Tenancy Services,Grounds & Site Maintenance,14-Sep-21,2122/06,SME,N,
10042907,NATHANIEL LICHFIELD & PARTNERS LTD,"11,885.50",Devt Policy & Local Plans,Prof & Consultancy Fees,14-Sep-21,2122/06,SME,Y,50%
10042695,PUBLIC SEWER SERVICES,"3,156.37",Major Imps,BMBS Repairs Work,31-Aug-21,2122/06,SME,N,
10042769,PUBLIC SEWER SERVICES,"1,458.07",Wenham Depot,Repairs,23-Aug-21,2122/06,SME,Y,50%
10042462,PRIVATE LANDLORD,650,Guaranteed Rent Scheme,Rent Payable,01-Sep-21,2122/06,SME,N,
10043026,PRIVATE LANDLORD,650,Guaranteed Rent Scheme,Rent Payable,28-Sep-21,2122/06,SME,N,
10042962,CHARISMA SPATIAL PLANNING LTD T/A ANN SK,"4,540.50",Nghbrhd Plan Designations,Prof & Consultancy Fees,24-Sep-21,2122/06,SME,N,
10042598,ASPECT CONTRACTS LTD,"4,303.00",Asbestos,Improvements,31-Aug-21,2122/06,LGE,N,
10042446,KNOWLES ASSOCIATES TFM LTD,"11,022.35",HRA Vehicle Renewals,Plant & Vehicle - Purchase,19-Aug-21,2122/06,SME,N,
10042757,KNOWLES ASSOCIATES TFM LTD,419.58,Building Services,Lease Cars - Payment,05-Aug-21,2122/06,SME,Y,50%
10042761,KNOWLES ASSOCIATES TFM LTD,"2,319.58",RHSSF,"Equipment, Tools & Materials",23-Aug-21,2122/06,SME,N,
10042818,KNOWLES ASSOCIATES TFM LTD,277.08,Building Services,Lease Cars - Payment,15-Sep-21,2122/06,SME,Y,50%
10042331,NORTHUMBRIAN WATER LTD,63.05,Chilton Depot,Legionella Testing,25-Aug-21,2122/06,LGE,Y,50%
10042331,NORTHUMBRIAN WATER LTD,34.15,HQ Energy,Legionella Testing,25-Aug-21,2122/06,LGE,N,
10042331,NORTHUMBRIAN WATER LTD,34.15,Lavenham TIC,Legionella Testing,25-Aug-21,2122/06,LGE,N,
10042331,NORTHUMBRIAN WATER LTD,28.9,Old School House,Legionella Testing,25-Aug-21,2122/06,LGE,N,
10042331,NORTHUMBRIAN WATER LTD,202.31,Public Conveniences,Legionella Testing,25-Aug-21,2122/06,LGE,N,
10042331,NORTHUMBRIAN WATER LTD,28.9,Responsive maintenance,Legionella Testing,25-Aug-21,2122/06,LGE,N,
10042331,NORTHUMBRIAN WATER LTD,266.38,Sheltered Accommodation,Legionella Testing,25-Aug-21,2122/06,LGE,N,
10042331,NORTHUMBRIAN WATER LTD,63.05,Temporary Accommodation,Legionella Testing,25-Aug-21,2122/06,LGE,N,
10042331,NORTHUMBRIAN WATER LTD,28.9,Wenham Depot,Legionella Testing,25-Aug-21,2122/06,LGE,Y,50%
10042149,STORETEC SERVICES LTD,609.78,ICT,"Equipment, Tools & Materials",31-Jul-21,2122/06,SME,Y,50%
10042530,AIRMAX REMOTE LTD,441.61,Building Services,Plant & Vehicle - Other costs,31-Aug-21,2122/06,SME,Y,50%
10042784,DOCUSIGN INC,"9,919.71",Tenancy Services,Line of Business Applications,15-Jun-21,2122/06,SME,Y,50%
10042482,ENGIE REGENERATION LTD,"109,209.61",Major Imps,Major Contracts,01-Sep-21,2122/06,LGE,N,
10042545,ENGIE REGENERATION LTD,"29,117.50",Environmental Imps,Major Contracts,02-Sep-21,2122/06,LGE,N,
10042673,ENGIE REGENERATION LTD,"37,964.47",Major Imps,Major Contracts,09-Sep-21,2122/06,LGE,N,
10042922,RESIDENTIALLY CHARTERED SURVEYORS,350,"Mackenzie Place, Cockfield",Prof & Consultancy Fees,20-Sep-21,2122/06,SME,N,
10042880,SUDBURYS,440,Guaranteed Rent Scheme,Rent Payable,21-Sep-21,2122/06,SME,N,
20027503,SUDBURYS,785,Homeless Prevention Fund,Misc Supplies & Services Costs,13-Sep-21,2122/06,SME,N,
10042710,ICENI,"4,375.39",Bourne Hill Wherstead S106 acq,Prof & Consultancy Fees,13-Sep-21,2122/06,SME,N,
10042712,ICENI,"1,097.53","11-12 Ipswich, Brantham",Prof & Consultancy Fees,13-Sep-21,2122/06,SME,N,
10042713,ICENI,"4,779.78","Bantocks Rd, Gt Walding S106",Prof & Consultancy Fees,13-Sep-21,2122/06,SME,N,
10042616,WILLIAM H BROWN ESTATE AGENTS - SUDBURY,725,Guaranteed Rent Scheme,Rent Payable,07-Sep-21,2122/06,SME,N,
10042650,PORTAL PLAN QUEST LTD,462,Devt Management -Applications,Planning Fees,13-Sep-21,2122/06,SME,N,
20027518,ASSINGTON VILLAGE HALL,263.45,Bring Sites,Contributions & Donations,21-Sep-21,2122/06,SME,N,
10042342,GOVERNMENT EVENTS,330.65,Community Safety-General,Training,23-Aug-21,2122/06,SME,Y,50%
10042698,A C LEIGH (NORWICH) LTD,447.36,Building Services,"Equipment, Tools & Materials",09-Sep-21,2122/06,SME,N,
10042844,A C LEIGH (NORWICH) LTD,356.04,Building Services,"Equipment, Tools & Materials",13-Sep-21,2122/06,SME,N,
20027521,BOXFORD PLAYING FIELDS MANAGEMENT COMMIT,433.5,Bring Sites,Contributions & Donations,21-Sep-21,2122/06,SME,N,
10042795,DAVID STAGG & ASSOCIATES LTD T/A DSA ELE,"4,198.86",Rewiring,Improvements,27-Aug-21,2122/06,SME,N,
10042796,DAVID STAGG & ASSOCIATES LTD T/A DSA ELE,"18,427.70",Rewiring,Major Contracts,31-Aug-21,2122/06,SME,N,
10042797,DAVID STAGG & ASSOCIATES LTD T/A DSA ELE,"7,857.32",Rewiring,Major Contracts,31-Aug-21,2122/06,SME,N,
10043012,3 POINT PROPERTY MANAGEMENT LTD,550,Guaranteed Rent Scheme,Rent Payable,27-Sep-21,2122/06,SME,N,
20027507,FLAGSHIP HOUSING GROUP LTD-RENT ACCOUNT,314.19,Homeless Prevention Fund,Misc Supplies & Services Costs,15-Sep-21,2122/06,LGE,N,
10042505,NORSE EASTERN LTD,"4,990.44","Schoolfield, Glemsford",Prof & Consultancy Fees,29-Aug-21,2122/06,LGE,N,
10042201,WEST SUFFOLK COUNCIL,550,CCTV Cameras,"Equipment, Tools & Materials",16-Aug-21,2122/06,LGE,N,
10042910,ENSORS,"1,950.00",BMS Invest,Audit Fees,22-Sep-21,2122/06,SME,N,
10042902,HUGHES TRADE,352.17,Temporary Accommodation,Furniture,22-Sep-21,2122/06,LGE,N,
10042436,APTL ENTERPRISES LTD,"3,652.00",PV Panels,Contracted Services,31-Aug-21,2122/06,SME,Y,44%
10042437,APTL ENTERPRISES LTD,"4,648.00",PV Panels,Contracted Services,31-Aug-21,2122/06,SME,Y,44%
10042453,WASHCO LTD,"2,608.00",Sheltered Accommodation,Misc Supplies & Services Costs,31-Aug-21,2122/06,SME,N,
10042008,ANGLIA COMMERCIAL FLOORING LTD,263.24,Building Services,Repairs,03-Aug-21,2122/06,SME,N,
10042011,ANGLIA COMMERCIAL FLOORING LTD,531.29,Building Services,Repairs,03-Aug-21,2122/06,SME,N,
10042016,ANGLIA COMMERCIAL FLOORING LTD,456.06,Building Services,Repairs,03-Aug-21,2122/06,SME,N,
10042018,ANGLIA COMMERCIAL FLOORING LTD,521.21,Building Services,Repairs,03-Aug-21,2122/06,SME,N,
10042032,ANGLIA COMMERCIAL FLOORING LTD,439.91,Building Services,Repairs,17-May-21,2122/06,SME,N,
10042915,ANGLIA COMMERCIAL FLOORING LTD,730.53,Building Services,Repairs,22-Sep-21,2122/06,SME,N,
10042919,ANGLIA COMMERCIAL FLOORING LTD,436.6,Building Services,Repairs,22-Sep-21,2122/06,SME,N,
20027576,ANGLIAN WATER BUS (NAT) LTD T/A WAVE,235.41,C Parks General,Water Rates - Metered,28-Sep-21,2122/06,LGE,N,
20027576,ANGLIAN WATER BUS (NAT) LTD T/A WAVE,"13,173.71",Chilton Depot,Water Rates - Metered,28-Sep-21,2122/06,LGE,Y,50%
20027576,ANGLIAN WATER BUS (NAT) LTD T/A WAVE,11.78,Friars Meadow Sudb,Water Rates - Metered,28-Sep-21,2122/06,LGE,N,
20027576,ANGLIAN WATER BUS (NAT) LTD T/A WAVE,82.33,General Rechargeable Works,Misc Supplies & Services Costs,28-Sep-21,2122/06,LGE,N,
20027576,ANGLIAN WATER BUS (NAT) LTD T/A WAVE,233.21,HQ Energy,Water Rates - Metered,28-Sep-21,2122/06,LGE,N,
20027576,ANGLIAN WATER BUS (NAT) LTD T/A WAVE,240.42,Old School House,Water Rates - Metered,28-Sep-21,2122/06,LGE,N,
20027576,ANGLIAN WATER BUS (NAT) LTD T/A WAVE,"3,139.53",Public Conveniences,Water Rates - Metered,28-Sep-21,2122/06,LGE,N,
20027576,ANGLIAN WATER BUS (NAT) LTD T/A WAVE,"3,878.76",Sheltered Accommodation,Water Rates - Metered,28-Sep-21,2122/06,LGE,N,
20027576,ANGLIAN WATER BUS (NAT) LTD T/A WAVE,179.3,Temporary Accommodation,Water Rates - Other Charges,28-Sep-21,2122/06,LGE,N,
20027576,ANGLIAN WATER BUS (NAT) LTD T/A WAVE,290.24,Tenancy Services,Water Rates - Metered,28-Sep-21,2122/06,LGE,N,
20027577,ANGLIAN WATER BUS (NAT) LTD T/A WAVE,126.45,C Parks General,Water Rates - Metered,29-Sep-21,2122/06,LGE,N,
20027577,ANGLIAN WATER BUS (NAT) LTD T/A WAVE,"2,739.45",Chilton Depot,Water Rates - Metered,29-Sep-21,2122/06,LGE,Y,50%
20027577,ANGLIAN WATER BUS (NAT) LTD T/A WAVE,4.06,Friars Meadow Sudb,Water Rates - Metered,29-Sep-21,2122/06,LGE,N,
20027577,ANGLIAN WATER BUS (NAT) LTD T/A WAVE,28.44,General Rechargeable Works,Misc Supplies & Services Costs,29-Sep-21,2122/06,LGE,N,
20027577,ANGLIAN WATER BUS (NAT) LTD T/A WAVE,56.77,HQ Energy,Water Rates - Metered,29-Sep-21,2122/06,LGE,N,
20027577,ANGLIAN WATER BUS (NAT) LTD T/A WAVE,87.98,Old School House,Water Rates - Metered,29-Sep-21,2122/06,LGE,N,
20027577,ANGLIAN WATER BUS (NAT) LTD T/A WAVE,440.64,Public Conveniences,Water Rates - Metered,29-Sep-21,2122/06,LGE,N,
20027577,ANGLIAN WATER BUS (NAT) LTD T/A WAVE,"1,630.12",Sheltered Accommodation,Water Rates - Metered,29-Sep-21,2122/06,LGE,N,
20027577,ANGLIAN WATER BUS (NAT) LTD T/A WAVE,164.2,Temporary Accommodation,Water Rates - Metered,29-Sep-21,2122/06,LGE,N,
20027577,ANGLIAN WATER BUS (NAT) LTD T/A WAVE,13.49,Tenancy Services,Water Rates - Unmetered,29-Sep-21,2122/06,LGE,N,
10042350,TAYLOR WIMPEY EAST ANGLIA,"12,896.43",Property Acquisition,Prof & Consultancy Fees,24-Aug-21,2122/06,SME,N,
10042350,TAYLOR WIMPEY EAST ANGLIA,"10,119.79","Wolsey Grange, Sproughton S106",Purchase of Land & Buildings,24-Aug-21,2122/06,SME,N,
10042886,IMSERV EUROPE LTD,299.07,Belle Vue House,Electricity,19-Aug-21,2122/06,LGE,N,
10042886,IMSERV EUROPE LTD,99.69,Headquarters General,Electricity,19-Aug-21,2122/06,LGE,N,
10042886,IMSERV EUROPE LTD,398.76,Public Conveniences,Electricity,19-Aug-21,2122/06,LGE,N,
10042886,IMSERV EUROPE LTD,996.9,Sheltered Accommodation,Electricity,19-Aug-21,2122/06,LGE,N,
10042886,IMSERV EUROPE LTD,99.69,Temporary Accommodation,Electricity,19-Aug-21,2122/06,LGE,N,
10042886,IMSERV EUROPE LTD,"4,386.36",Tenancy Services,Electricity,19-Aug-21,2122/06,LGE,N,
10042887,IMSERV EUROPE LTD,71.44,Belle Vue House,Electricity,13-Aug-21,2122/06,LGE,N,
10042887,IMSERV EUROPE LTD,17.86,Headquarters General,Electricity,13-Aug-21,2122/06,LGE,N,
10042887,IMSERV EUROPE LTD,53.58,Public Conveniences,Electricity,13-Aug-21,2122/06,LGE,N,
10042887,IMSERV EUROPE LTD,17.86,Sewage Treatment Works,Electricity,13-Aug-21,2122/06,LGE,N,
10042887,IMSERV EUROPE LTD,160.74,Sheltered Accommodation,Electricity,13-Aug-21,2122/06,LGE,N,
10042887,IMSERV EUROPE LTD,17.86,Temporary Accommodation,Electricity,13-Aug-21,2122/06,LGE,N,
10042887,IMSERV EUROPE LTD,821.56,Tenancy Services,Electricity,13-Aug-21,2122/06,LGE,N,
10042535,STUDLEY CAPITAL LIMITED,"2,925.00","BRRP-Hamilton,Boreham&BelleVue",Prof & Consultancy Fees,02-Sep-21,2122/06,ST,N,
20027504,PRIVATE LANDLORD,380.82,Guaranteed Rent Scheme,Rent Payable,10-Sep-21,2122/06,SME,N,
10042953,ALPHETON VILLAGE HALL,"1,540.00",Suffolk Community Restart Fund,Grants,24-Sep-21,2122/06,SME,N,
10042483,TIAA LTD,"4,250.00",Internal Audit,Contracted Services,01-Sep-21,2122/06,SME,Y,50%
10042425,LAND USE CONSULTANTS LTD,"2,715.00",Devt Policy & Local Plans,Prof & Consultancy Fees,26-Aug-21,2122/06,SME,Y,50%
10042686,LAND USE CONSULTANTS LTD,"1,500.00",Nghbrhd Plan Designations,Prof & Consultancy Fees,11-Sep-21,2122/06,SME,N,
10042687,LAND USE CONSULTANTS LTD,"1,500.00",Nghbrhd Plan Designations,Prof & Consultancy Fees,11-Sep-21,2122/06,SME,N,
10043033,LAND USE CONSULTANTS LTD,"1,500.00",Nghbrhd Plan Designations,Prof & Consultancy Fees,28-Sep-21,2122/06,SME,N,
10042879,REEFER PROPERTIES LTD,695,Guaranteed Rent Scheme,Rent Payable,21-Sep-21,2122/06,SME,N,
10042353,WADDINGTON BROWN LTD,"1,164.75",Organisational Devt,Agency Staff,23-Aug-21,2122/06,SME,Y,50%
10042461,PRIVATE LANDLORD,490,Guaranteed Rent Scheme,Rent Payable,01-Sep-21,2122/06,SME,N,
10043025,PRIVATE LANDLORD,490,Guaranteed Rent Scheme,Rent Payable,28-Sep-21,2122/06,SME,N,
10042926,BRANDON WETROOMS,"6,066.15",Mand Disabled Facilities Grant,Grants,23-Sep-21,2122/06,SME,N,
10043053,BRANDON WETROOMS,"5,830.00",Mand Disabled Facilities Grant,Grants,29-Sep-21,2122/06,SME,N,
10042582,LAVENHAM COMMUNITY LAND TRUST,"7,982.00",Grants for Affordable Housing,Grants,06-Apr-21,2122/06,SME,N,
10042924,PRIVATE LANDLORD,650,Guaranteed Rent Scheme,Rent Payable,23-Sep-21,2122/06,ST,N,
10042901,PRIVATE LANDLORD,650,Guaranteed Rent Scheme,Rent Payable,22-Sep-21,2122/06,SME,N,
10042596,PAUL STEPHENSON ASSOCIATES,780,"Angel Court, Hadleigh",Contracted Services,01-Aug-21,2122/06,SME,N,
20027579,PRIVATE LANDLORD,"1,198.00",Guaranteed Rent Scheme,Rent Payable,27-Sep-21,2122/06,ST,N,
10042646,JLV PROPERTY LTD,500,Guaranteed Rent Scheme,Rent Payable,07-Sep-21,2122/06,SME,N,
10042445,PLUG-N-GO-LIMITED,175.36,Environmental Protection,Contracted Services,31-Aug-21,2122/06,SME,N,
10042445,PLUG-N-GO-LIMITED,237.11,Climate Change and Sustainabil,Misc Supplies & Services Costs,31-Aug-21,2122/06,SME,N,
10043006,CAPITA BUSINESS SERVICES LTD (PAY360),650,ICT costs rltd to Jnt wkg w/MS,Desktop Software,27-Sep-21,2122/06,LGE,Y,50%
10043024,SEQUENCE UK LTD (WILLIAM H BROWN),700,Guaranteed Rent Scheme,Rent Payable,28-Sep-21,2122/06,LGE,N,
10042878,PRIVATE LANDLORD,550,Guaranteed Rent Scheme,Rent Payable,21-Sep-21,2122/06,ST,N,
10042451,CONSTABLE MEMORIAL HALL EAST BERGHOLT,"2,500.00",Suffolk Community Restart Fund,Contributions from other LAs,31-Aug-21,2122/06,SME,N,
10042463,PRIVATE LANDLORD,490,Rent Deposit Scheme,Misc Premises Costs,01-Sep-21,2122/06,SME,N,
10042299,AMPLIS CONSTRUCTION LTD,"2,079.70",Building Services,Repairs,23-Aug-21,2122/06,SME,N,
10042300,AMPLIS CONSTRUCTION LTD,"1,095.84",Building Services,Repairs,23-Aug-21,2122/06,SME,N,
10042531,AMPLIS CONSTRUCTION LTD,"12,501.29","Fences, Gates and Walls",Major Contracts,02-Sep-21,2122/06,SME,N,
10042683,AMPLIS CONSTRUCTION LTD,"3,829.20",Building Services,Repairs,10-Sep-21,2122/06,SME,N,
10042640,PRIVATE LANDLORD,786.5,Guaranteed Rent Scheme,Rent Payable,06-Sep-21,2122/06,ST,N,
10042672,PRIVATE LANDLORD,650,Guaranteed Rent Scheme,Rent Payable,13-Sep-21,2122/06,ST,N,
10042550,CORENERGY LIMITED,"1,800.00",Public Sector Decarbonisation,Contracted Services,31-Aug-21,2122/06,SME,N,
10042551,CORENERGY LIMITED,"149,362.80",Public Sector Decarbonisation,Contracted Services,31-Aug-21,2122/06,SME,N,
10042552,CORENERGY LIMITED,"7,617.10",Public Sector Decarbonisation,Contracted Services,31-Aug-21,2122/06,SME,N,
10042553,CORENERGY LIMITED,"52,968.00",Public Sector Decarbonisation,Contracted Services,31-Aug-21,2122/06,SME,N,
10042627,COUNTRYSTYLE RECYCLING LTD,264.17,Bring Sites,Contracted Services,31-Aug-21,2122/06,SME,N,
10042378,ANDERSON DESIGN & BUILD LIMITED,"215,341.89",Waldingfield Rd S106 Andersons,Prof & Consultancy Fees,22-Aug-21,2122/06,SME,N,
10042488,ANDERSON DESIGN & BUILD LIMITED,"146,134.02",Waldingfield Rd S106 Andersons,Prof & Consultancy Fees,25-Aug-21,2122/06,SME,N,
10042438,DGL QUALITY MANAGEMENT LTD,560,"1-3 Queensland, Shotley",Prof & Consultancy Fees,31-Aug-21,2122/06,SME,N,
10042439,DGL QUALITY MANAGEMENT LTD,560,"11-12 Ipswich, Brantham",Prof & Consultancy Fees,31-Aug-21,2122/06,SME,N,
10042268,OAKFIELD ARBORICULTURAL SERVICES LTD,315,"Uplands, Sudbury",Prof & Consultancy Fees,20-Aug-21,2122/06,SME,N,
10041679,TRUETECH INTEGRATED LTD,"45,000.00",CCTV Cameras,"Equipment, Tools & Materials",21-Jul-21,2122/06,SME,N,
10042041,TRUETECH INTEGRATED LTD,"45,000.00",CCTV Cameras,"Equipment, Tools & Materials",05-Aug-21,2122/06,SME,N,
10042160,TRUETECH INTEGRATED LTD,"1,385.00",CCTV Cameras,"Equipment, Tools & Materials",12-Aug-21,2122/06,SME,N,
10042297,TRUETECH INTEGRATED LTD,"1,493.00",CCTV Cameras,"Equipment, Tools & Materials",20-Aug-21,2122/06,SME,N,
10042615,PRIVATE LANDLORD,650,Guaranteed Rent Scheme,Rent Payable,07-Sep-21,2122/06,ST,N,
10042308,RSK LAND & DEVELOPMENT ENGINEERING LTD,900,Sudb C Parks,Misc Supplies & Services Costs,23-Aug-21,2122/06,LGE,N,
10042617,PRIVATE LANDLORD,800,Guaranteed Rent Scheme,Rent Payable,07-Sep-21,2122/06,SME,N,
10042951,KING GEORGES FIELD RAYDON,"2,500.00",Suffolk Community Restart Fund,Grants,24-Sep-21,2122/06,SME,N,
10042304,ARAN INSULATION LTD,"1,104.23",Insulation Imps,Improvements,23-Aug-21,2122/06,SME,N,
10042423,ARAN INSULATION LTD,"1,540.00",Building Services,Contracted Services,31-Aug-21,2122/06,SME,N,
10042859,ARAN INSULATION LTD,466.45,Building Services,Repairs,20-Sep-21,2122/06,SME,N,
10042859,ARAN INSULATION LTD,"1,803.00",Insulation Imps,Improvements,20-Sep-21,2122/06,SME,N,
10042455,SWECO UK LTD,955,Sheltered Units-Gen.Imp,Prof & Consultancy Fees,31-Aug-21,2122/06,LGE,N,
10042881,PRIVATE LANDLORD,550,Guaranteed Rent Scheme,Rent Payable,21-Sep-21,2122/06,ST,N,
10042873,IPSWICH HOTEL,655.71,Devt Policy & Local Plans,Room Hire,31-Jul-21,2122/06,SME,Y,50%
10042874,IPSWICH HOTEL,"1,710.90",Devt Policy & Local Plans,Room Hire,31-Jul-21,2122/06,SME,Y,50%
10042965,IPSWICH HOTEL,"2,553.14",Devt Policy & Local Plans,Room Hire,16-Jun-21,2122/06,SME,Y,50%
10042610,NWES PROPERTY SERVICES LTD,620,Major Imps,Rent Payable,01-Sep-21,2122/06,SME,N,
10042858,NWES PROPERTY SERVICES LTD,620,Major Imps,Rent Payable,02-Aug-21,2122/06,SME,N,
10042651,ELENTEC LTD,"12,495.00",Pld Maint/Enhncmts-Kingfisher,Improvements,08-Sep-21,2122/06,SME,N,
20027502,DRISCOLL KINGSTON SOLICITORS,"6,350.00",Building Services,Payments to Tenants,09-Sep-21,2122/06,SME,N,
10042464,PRIVATE LANDLORD,"1,200.00",Guaranteed Rent Scheme,Rent Payable,01-Sep-21,2122/06,SME,N,
10042441,PRIVATE LANDLORD,550,Guaranteed Rent Scheme,Rent Payable,31-Aug-21,2122/06,ST,N,
10042450,HADLEIGH CHORAL SOCIETY,"1,881.00",Suffolk Community Restart Fund,Contributions from other LAs,31-Aug-21,2122/06,SME,N,
10043005,RRR CONSULTANCY LTD,"3,000.00",Devt Policy & Local Plans,Prof & Consultancy Fees,22-Sep-21,2122/06,SME,Y,50%
10042772,JACKSON LIFT SERVICES LTD,"1,041.65",Sheltered Accommodation,Plant Maintenance,07-Sep-21,2122/06,LGE,N,
10042842,JACKSON LIFT SERVICES LTD,"1,387.00",Sheltered Units-Gen.Imp,Improvements,17-Sep-21,2122/06,LGE,N,
10042597,LONG MELFORD COLTS & FILLIES FC,500,Grants & Contrbns,Contributions & Donations,08-Sep-21,2122/06,SME,N,
20027506,DAVID BURR LETTINGS,"1,450.00",Guaranteed Rent Scheme,Rent Payable,15-Sep-21,2122/06,SME,N,
10042939,OLSBERG/SPI LIMITED,"13,850.00",Economy & Business,Contributions & Donations,21-Sep-21,2122/06,SME,N,
10042952,LONG MELFORD CRICKET CLUB LTD,"2,000.00",Suffolk Community Restart Fund,Grants,24-Sep-21,2122/06,SME,N,
10042954,SUFFOLK VIKINGS SKI TEAM,"1,854.25",Suffolk Community Restart Fund,Grants,24-Sep-21,2122/06,SME,N,
10042956,LAVENHAM COMMUNITY HUB COMMUNITY LAND TR,658.71,Suffolk Community Restart Fund,Grants,24-Sep-21,2122/06,SME,N,
978,ANGLIAN WATER,-115.6,Tenancy Services,Water Rates - Metered,24-Sep-21,2122/06,LGE,N,
979,ANGLIAN WATER,115.6,Tenancy Services,Water Rates - Metered,24-Sep-21,2122/06,LGE,N,
967,BLUE FLAME (COLCHESTER) LTD,-35.93,Planned Maint - Heating,Property Servicing,05-May-21,2122/06,SME,N,
968,BLUE FLAME (COLCHESTER) LTD,35.93,Planned Maint - Heating,Property Servicing,05-May-21,2122/06,SME,N,
969,BLUE FLAME (COLCHESTER) LTD,-111.09,Planned Maint - Heating,Property Servicing,23-Jun-21,2122/06,SME,N,
970,BLUE FLAME (COLCHESTER) LTD,111.09,Planned Maint - Heating,Property Servicing,23-Jun-21,2122/06,SME,N,
971,BLUE FLAME (COLCHESTER) LTD,-11.47,Planned Maint - Heating,Property Servicing,23-Jun-21,2122/06,SME,N,
972,BLUE FLAME (COLCHESTER) LTD,11.47,Planned Maint - Heating,Property Servicing,23-Jun-21,2122/06,SME,N,
973,BLUE FLAME (COLCHESTER) LTD,-16.42,Planned Maint - Heating,Property Servicing,07-Jul-21,2122/06,SME,N,
974,BLUE FLAME (COLCHESTER) LTD,16.42,Planned Maint - Heating,Property Servicing,07-Jul-21,2122/06,SME,N,
10042620,EAST OF ENGLAND LGA,-400,Management Team,Subscriptions,25-Aug-21,2122/06,SME,N,
975,NORTHERN HOUSING CONSORTIUM,19.72,Current Assets,LLOYDS GENERAL PAYMENTS,15-Sep-21,2122/06,SME,N,
20027509,NORTHERN HOUSING CONSORTIUM,-6.28,General/Supervision & Mgmt,Subscriptions,31-Mar-21,2122/06,SME,N,
20027510,NORTHERN HOUSING CONSORTIUM,-3.66,General/Supervision & Mgmt,Subscriptions,31-Mar-21,2122/06,SME,N,
10042723,KNOWLES ASSOCIATES TFM LTD,-15.84,Building Services,Lease Cars - Payment,25-Aug-21,2122/06,SME,N,
10042725,KNOWLES ASSOCIATES TFM LTD,-15.84,Building Services,Lease Cars - Payment,25-Aug-21,2122/06,SME,Y,50%
10042727,KNOWLES ASSOCIATES TFM LTD,-15.84,Building Services,Lease Cars - Payment,25-Aug-21,2122/06,SME,Y,50%
10042758,KNOWLES ASSOCIATES TFM LTD,-15.84,Building Services,Lease Cars - Payment,25-Aug-21,2122/06,SME,Y,50%
965,SKYGUARD LTD T/A PEOPLESAFE,-310,Health & Safety,"Equipment, Tools & Materials",04-Jun-21,2122/06,SME,Y,50%
20027578,ANGLIAN WATER BUS (NAT) LTD T/A WAVE,84.91,C Parks General,Water Rates - Metered,29-Sep-21,2122/06,LGE,N,
20027578,ANGLIAN WATER BUS (NAT) LTD T/A WAVE,"-10,193.22",Chilton Depot,Water Rates - Metered,29-Sep-21,2122/06,LGE,Y,50%
20027578,ANGLIAN WATER BUS (NAT) LTD T/A WAVE,4.06,Friars Meadow Sudb,Water Rates - Metered,29-Sep-21,2122/06,LGE,N,
20027578,ANGLIAN WATER BUS (NAT) LTD T/A WAVE,111.47,General Rechargeable Works,Misc Supplies & Services Costs,29-Sep-21,2122/06,LGE,N,
20027578,ANGLIAN WATER BUS (NAT) LTD T/A WAVE,56.77,HQ Energy,Water Rates - Metered,29-Sep-21,2122/06,LGE,N,
20027578,ANGLIAN WATER BUS (NAT) LTD T/A WAVE,-34.17,Old School House,Water Rates - Metered,29-Sep-21,2122/06,LGE,N,
20027578,ANGLIAN WATER BUS (NAT) LTD T/A WAVE,659.44,Public Conveniences,Water Rates - Metered,29-Sep-21,2122/06,LGE,N,
20027578,ANGLIAN WATER BUS (NAT) LTD T/A WAVE,"1,510.94",Sheltered Accommodation,Water Rates - Metered,29-Sep-21,2122/06,LGE,N,
20027578,ANGLIAN WATER BUS (NAT) LTD T/A WAVE,351.88,Temporary Accommodation,Water Rates - Metered,29-Sep-21,2122/06,LGE,N,
20027578,ANGLIAN WATER BUS (NAT) LTD T/A WAVE,13.49,Tenancy Services,Water Rates - Unmetered,29-Sep-21,2122/06,LGE,N,
10042966,IPSWICH HOTEL,-824.19,Devt Policy & Local Plans,Room Hire,27-Sep-21,2122/06,SME,Y,50%
